{"text_format":"1","workbook":"xlsx","n_sheets":5,"sheets":["HOME","Verbrauchsrechner-Mörtel","Verbrauchsrechner-Monodrän","Release","Hintergrund-Mörtel"],"not_rendered":{"charts":0,"images":20,"macros":1,"external_links":1,"defined_names":5,"comments":2,"pivot_tables":0},"unopened":[],"bounds":{"document_bytes":16777216,"sheet_cells":100000,"rows_first":2000,"rows_last":500,"rows_between":2000,"halvings":0,"cell_chars":16384,"cell_head_chars":4096},"cells_cut":0,"cells_raw":0,"read":"whole","date_system":"1900"}

{"sheet":"HOME","index":0,"n_rows":26,"n_cols":51,"rows_kept":26,"cut":false,"hidden":false,"merged":[[4,1,4,3],[4,5,4,7],[13,19,13,38],[15,19,15,38],[12,19,12,23],[14,19,14,38],[10,19,10,38],[0,47,19,51],[0,14,4,45],[16,19,16,38],[12,25,12,38],[11,19,11,38]]}
[null,{"$f":"NOW()","v":"2023-08-01T19:36:13.950"},"Uhr",null,null,null,null,null,null,null,null,null,null,null,"Verbrauchsrechner",null,null,null,null,null,null,null,null,null,null,null,null,null,null,null,null,null,null,null,null,null,null,null,null,null,null,null,null,null,null,null,null,"Navigation"]
[]
[]
[]
[]
[]
[null,null,null,null,null,null,null,null,null,null,null,null,null,null,null,null,null,null,null,null,null,null,null,null,null,null,null,null,null,null,null,null,null,null,null,null,null,null,null,null,null,null,null,null,null,"für gräfix & Rabolin Produkte"]
[]
[]
[]
[null,null,null,null,null,null,null,null,null,null,null,null,null,null,null,null,null,"Firma:"]
[null,null,null,null,null,null,null,null,null,null,null,null,null,null,null,null,null,"Objekt:"]
[null,null,null,null,null,null,null,null,null,null,null,null,null,null,null,null,null,"PLZ/Ort:"]
[null,null,null,null,null,null,null,null,null,null,null,null,null,null,null,null,null,"Tel.:"]
[null,null,null,null,null,null,null,null,null,null,null,null,null,null,null,null,null,"Fax.:"]
[null,null,null,null,null,null,null,null,null,null,null,null,null,null,null,null,null,"E-Mail:"]
[null,null,null,null,null,null,null,null,null,null,null,null,null,null,null,null,null,"Ansprechpartner:"]
[]
[]
[]
[]
[]
[]
[]
[null,"Alle Angaben sind Durchschnittsverbrauchswerte und lediglich als Kalkulationshilfe gedacht. Sie haben bei Verrechnung keine Gültigkeit. Gewährleistungsansprüche können daraus  "]
[null,"nicht abgeleitet werden. Die hier gemachten Angaben sind unverbindliche Erfahrungswerte und variieren je nach Baustelle, Objektgröße und maschineller Ausrüstung.",null,null,null,null,null,null,null,null,null,null,null,null,null,null,null,null,null,null,null,null,null,null,null,null,null,null,null,null,null,null,null,null,null,null,null,null,null,null,null,null,null,null,null,null,null,null,null,null,"© Gunnar Schmidt     2023 v3063"]

{"sheet":"Verbrauchsrechner-Mörtel","index":1,"n_rows":62,"n_cols":52,"rows_kept":62,"cut":false,"hidden":false,"merged":[[9,47,25,51],[0,14,4,45],[4,1,4,3],[4,5,4,7],[13,13,13,17],[15,23,15,24],[15,28,15,29],[15,33,15,34],[15,38,15,39],[15,43,15,44],[20,11,20,40],[22,5,22,7],[22,8,22,10],[23,5,23,8],[23,13,23,20],[29,5,29,7],[21,3,21,8],[30,5,30,7],[31,5,31,7],[32,5,32,7],[34,4,34,7],[34,8,34,10],[34,13,34,17],[31,9,31,38],[34,20,34,24],[34,28,34,50],[32,9,32,17],[30,40,32,43],[32,30,32,38],[35,22,35,23],[35,26,35,50],[38,22,38,23],[38,26,38,50],[40,22,40,23],[40,26,40,50],[42,22,42,23],[42,26,42,50],[44,22,44,23],[44,26,44,50],[46,22,46,23],[46,26,46,50],[48,22,48,23],[48,26,48,50],[51,22,51,23],[51,26,51,50],[54,22,54,23],[54,26,54,50]]}
[null,{"$f":"NOW()","v":"2023-08-01T19:36:13.950"},"Uhr",null,null,null,null,null,null,null,null,null,null,null,"Verbrauchsrechner"]
[]
[]
[]
[null,"Größe der Fläche",null,null,null,0,null,null,"m²"]
["m",null,"m",null,"m",null,"m",null,null,"m",null,1,"m",{"$f":"L6*10","v":10},"m",null,null,null,null,null,null,null,null,null,null,null,null,null,null,null,null,null,null,null,null,null,null,null,null,null,null,null,null,null,null,null,null,null,null,null,null,"m"]
[null,null,null,null,null,null,null,null,null,null,null,null,null,null,null,null,null,null,null,null,null,null,null,null,null,null,null,null,null,null,null,null,null,null,null,null,null,null,null,null,null,null,null,null,null,"für gräfix Kleber & Mörtel"]
[]
[null,"Untergründe vor Grundierung"]
[null,"Art",null,null,null,null,null,null,null,null,null,null,null,null,null,null,null,null,null,null,null,null,null,null,null,null,null,{"$f":"CONCATENATE(\"Gebindegrößen\",'Hintergrund-Mörtel'!F17)","v":"Gebindegrößen"},null,null,null,null,null,null,null,{"$f":"'Hintergrund-Mörtel'!C9","v":0},null,null,null,null,null,null,null,null,null,null,null,"Navigation"]
[]
["   "]
[null,"Abdichtung"]
[null,"Bereich",null,null,null,null,null,null,null,null,null,"Auftragstärke",null,0,null,null,null,null,null,"mm"]
[]
[null,null,null,null,null,null,null,null,null,null,null,null,null,null,null,null,null,null,null,null,null,null,null,0,null,"lfm",null,null,0,null,"Stk",null,null,0,null,"Stk",null,null,0,null,"Stk",null,null,0,null,"Stk"]
[null,null,null,null,null,null,null,null,null,null,null,null,{"$f":"CONCATENATE(\"Gebindegrößen\",F53)","v":"Gebindegrößen"}]
[]
[]
[null,"Kleber / Mörtel"]
[null,"Produkt",null,null,null,null,null,null,null,null,null,{"$f":"'Hintergrund-Mörtel'!C46","v":0}]
[null,null,null,{"$f":"'Hintergrund-Mörtel'!C164","v":0}]
[null,{"$f":"IF('Hintergrund-Mörtel'!C154>9,\"→→→\",\"\")","v":""},null,"Mörtelbettstärke",null,0,null,null,"mm              oder",null,null,"   Zahnkelle",null,null,null,null,null,null,null,null,null,{"$f":"IF(AND('Hintergrund-Mörtel'!C154>1,'Hintergrund-Mörtel'!C154<10),\"←←←\",\"\")","v":""}]
[null,null,null,null,null,"(Mittel- und Dickbettmörtel)",null,null,null,null,null,null,null,"(Dünnbettkleber)"]
[]
[]
[null,"Fugenmörtel"]
[null,"Produkt",null,null,null,null,null,null,null,null,null,null,null,null,null,null,null,null,null,null,null,null,null,null,null,null,null,null,null,null,null,null,null,null,null,{"$f":"CONCATENATE(\"Gebindegrößen\",'Hintergrund-Mörtel'!F220)","v":"Gebindegrößen"}]
[]
[null,null,null,"Plattenbreite",null,0,null,null,"cm"]
[null,null,null,"Plattenlänge",null,0,null,null,"cm"]
[null,null,null,"Fugentiefe",null,0,null,null,"mm",{"$f":"'Hintergrund-Mörtel'!F222","v":""}]
[null,null,null,"Fugenbreite",null,0,null,null,"mm",{"$f":"'Hintergrund-Mörtel'!F221","v":""},null,null,null,null,null,null,null,null,null,null,null,null,null,null,null,null,null,null,null,null,{"$f":"IF('Hintergrund-Mörtel'!C226=\"keine\",\"\",\"lieferbare Fugenfarben\")","v":""}]
[]
[null,null,null,"Produkte","Verbrauch pro m²",null,null,null,"Gesamtverbrauch",null,null,"Anzahl",null,"Lieferform",null,null,null,null,null,null,"Liefermenge",null,null,null,null,null,null,null,"Bemerkungen"]
[null,"Grundierung",null,{"$f":"'Hintergrund-Mörtel'!C7","v":0},null,{"$f":"'Hintergrund-Mörtel'!C6","v":0},null,{"$f":"'Hintergrund-Mörtel'!C8","v":0},{"$f":"'Hintergrund-Mörtel'!C6*F5","v":0},null,{"$f":"'Hintergrund-Mörtel'!C8","v":0},{"$f":"ROUNDUP(I36/'Hintergrund-Mörtel'!C37,0)","v":{"$error":"#DIV/0!"}},null,{"$f":"'Hintergrund-Mörtel'!C12","v":0},null,"á",null,{"$f":"'Hintergrund-Mörtel'!C37","v":0},null,{"$f":"'Hintergrund-Mörtel'!C8","v":0},"≙",null,{"$f":"L36*R36","v":{"$error":"#DIV/0!"}},null,null,{"$f":"'Hintergrund-Mörtel'!C8","v":0},{"$f":"IF('Hintergrund-Mörtel'!F16=\"0\",\" \",'Hintergrund-Mörtel'!F16)","v":" "}]
[]
[]
[null,"Abdichtung",null,{"$f":"'Hintergrund-Mörtel'!C44","v":0},null,{"$f":"'Hintergrund-Mörtel'!C43*N14","v":0},null,{"$f":"'Hintergrund-Mörtel'!C45","v":0},{"$f":"F39*F5","v":0},null,{"$f":"'Hintergrund-Mörtel'!C45","v":0},{"$f":"ROUNDUP(I39/'Hintergrund-Mörtel'!C63,0)","v":{"$error":"#DIV/0!"}},null,{"$f":"'Hintergrund-Mörtel'!C64","v":0},null,"á",null,{"$f":"'Hintergrund-Mörtel'!C63","v":0},null,{"$f":"'Hintergrund-Mörtel'!C45","v":0},"≙",null,{"$f":"L39*R39","v":{"$error":"#DIV/0!"}},null,null,{"$f":"'Hintergrund-Mörtel'!C45","v":0},{"$f":"'Hintergrund-Mörtel'!C46","v":0}]
[]
[null,{"$f":"IF('Hintergrund-Mörtel'!F69=FALSE,\" \")","v":" "},null,{"$f":"'Hintergrund-Mörtel'!C82","v":"gräfix 35305"},null,{"$f":"'Hintergrund-Mörtel'!C70","v":0},null,{"$f":"'Hintergrund-Mörtel'!C72","v":0},{"$f":"X16*F41","v":0},null,{"$f":"'Hintergrund-Mörtel'!C72","v":0},{"$f":"ROUNDUP(I41/'Hintergrund-Mörtel'!C81,0)","v":0},null,{"$f":"'Hintergrund-Mörtel'!C74","v":0},null,"á",null,{"$f":"'Hintergrund-Mörtel'!C81","v":5},null,{"$f":"'Hintergrund-Mörtel'!C72","v":0},"≙",null,{"$f":"L41*R41","v":0},null,null,{"$f":"'Hintergrund-Mörtel'!C72","v":0}]
[]
[null,{"$f":"IF('Hintergrund-Mörtel'!F86=FALSE,\" \")","v":" "},null,{"$f":"'Hintergrund-Mörtel'!C99","v":"gräfix 3541"},null,{"$f":"'Hintergrund-Mörtel'!C87","v":0},null,{"$f":"'Hintergrund-Mörtel'!C89","v":0},{"$f":"AC16*F43","v":0},null,{"$f":"'Hintergrund-Mörtel'!C89","v":0},{"$f":"ROUNDUP(I43/'Hintergrund-Mörtel'!C98,0)","v":0},null,{"$f":"'Hintergrund-Mörtel'!C100","v":"Stück"},null,"á",null,{"$f":"'Hintergrund-Mörtel'!C98","v":1},null,{"$f":"'Hintergrund-Mörtel'!C89","v":0},"≙",null,{"$f":"L43*R43","v":0},null,null,{"$f":"'Hintergrund-Mörtel'!C89","v":0}]
[]
[null,{"$f":"IF('Hintergrund-Mörtel'!F103=FALSE,\" \",'Hintergrund-Mörtel'!E110)","v":" "},null,{"$f":"'Hintergrund-Mörtel'!C116","v":"gräfix 3542"},null,{"$f":"'Hintergrund-Mörtel'!C104","v":0},null,{"$f":"'Hintergrund-Mörtel'!C106","v":0},{"$f":"AH16*F45","v":0},null,{"$f":"'Hintergrund-Mörtel'!C106","v":0},{"$f":"ROUNDUP(I45/'Hintergrund-Mörtel'!C115,0)","v":0},null,{"$f":"'Hintergrund-Mörtel'!C117","v":"Stück"},null,"á",null,{"$f":"'Hintergrund-Mörtel'!C115","v":1},null,{"$f":"'Hintergrund-Mörtel'!C106","v":0},"≙",null,{"$f":"L45*R45","v":0},null,null,{"$f":"'Hintergrund-Mörtel'!C106","v":0}]
[]
[null,{"$f":"IF('Hintergrund-Mörtel'!F120=FALSE,\" \",'Hintergrund-Mörtel'!E127)","v":" "},null,{"$f":"'Hintergrund-Mörtel'!C133","v":"gräfix 355"},null,{"$f":"'Hintergrund-Mörtel'!C121","v":0},null,{"$f":"'Hintergrund-Mörtel'!C123","v":0},{"$f":"AM16*F47","v":0},null,{"$f":"'Hintergrund-Mörtel'!C123","v":0},{"$f":"ROUNDUP(I47/'Hintergrund-Mörtel'!C132,0)","v":0},null,{"$f":"'Hintergrund-Mörtel'!C134","v":"Stück"},null,"á",null,{"$f":"'Hintergrund-Mörtel'!C132","v":1},null,{"$f":"'Hintergrund-Mörtel'!C123","v":0},"≙",null,{"$f":"L47*R47","v":0},null,null,{"$f":"'Hintergrund-Mörtel'!C123","v":0}]
[]
[null,{"$f":"IF('Hintergrund-Mörtel'!F137=FALSE,\" \",'Hintergrund-Mörtel'!E144)","v":" "},null,{"$f":"'Hintergrund-Mörtel'!C150","v":"gräfix 356"},null,{"$f":"'Hintergrund-Mörtel'!C138","v":0},null,{"$f":"'Hintergrund-Mörtel'!C140","v":0},{"$f":"AR16*F49","v":0},null,{"$f":"'Hintergrund-Mörtel'!C140","v":0},{"$f":"ROUNDUP(I49/'Hintergrund-Mörtel'!C149,0)","v":0},null,{"$f":"'Hintergrund-Mörtel'!C151","v":"Stück"},null,"á",null,{"$f":"'Hintergrund-Mörtel'!C149","v":1},null,{"$f":"'Hintergrund-Mörtel'!C140","v":0},"≙",null,{"$f":"L49*R49","v":0},null,null,{"$f":"'Hintergrund-Mörtel'!C140","v":0}]
[]
[]
[null,"Kleber / Mörtel",null,{"$f":"'Hintergrund-Mörtel'!C157","v":0},null,{"$f":"'Hintergrund-Mörtel'!C156","v":0},null,{"$f":"T52","v":0},{"$f":"F52*F5","v":0},null,{"$f":"T52","v":0},{"$f":"ROUNDUP(I52/'Hintergrund-Mörtel'!C159,0)","v":{"$error":"#DIV/0!"}},null,{"$f":"'Hintergrund-Mörtel'!C160","v":0},null,"á",null,{"$f":"'Hintergrund-Mörtel'!C159","v":0},null,{"$f":"'Hintergrund-Mörtel'!C158","v":0},"≙",null,{"$f":"L52*R52/1000","v":{"$error":"#DIV/0!"}},null,null,"to"]
[]
[]
[null,"Fugenmörtel",null,{"$f":"IF('Hintergrund-Mörtel'!B242=0,\"\",(CONCATENATE('Hintergrund-Mörtel'!C212,'Hintergrund-Mörtel'!B242,'Hintergrund-Mörtel'!C249)))","v":"0keinekeine"},null,{"$f":"IF('Hintergrund-Mörtel'!B242=0,\"\",('Hintergrund-Mörtel'!D208/'Hintergrund-Mörtel'!D209))","v":{"$error":"#DIV/0!"}},null,{"$f":"T55","v":0},{"$f":"IF('Hintergrund-Mörtel'!B242=0,\"\",'Hintergrund-Mörtel'!D208)","v":{"$error":"#DIV/0!"}},null,{"$f":"T55","v":0},{"$f":"ROUNDUP(I55/'Hintergrund-Mörtel'!C241,0)","v":{"$error":"#DIV/0!"}},null,{"$f":"'Hintergrund-Mörtel'!C242","v":0},null,"á",null,{"$f":"'Hintergrund-Mörtel'!C241","v":0},null,{"$f":"'Hintergrund-Mörtel'!C213","v":0},"≙",null,{"$f":"L55*R55","v":{"$error":"#DIV/0!"}},null,null,{"$f":"T55","v":0},{"$f":"IF('Hintergrund-Mörtel'!B242=0,\"\",(CONCATENATE('Hintergrund-Mörtel'!F221,'Hintergrund-Mörtel'!F223,'Hintergrund-Mörtel'!F222)))","v":""}]
[]
[]
[]
[]
[]
[null,"Alle Angaben sind Durchschnittsverbrauchswerte und lediglich als Kalkulationshilfe gedacht. Sie haben bei Verrechnung keine Gültigkeit. Gewährleistungsansprüche können daraus "]
[null,"nicht abgeleitet werden. Die hier gemachten Angaben sind unverbindliche Erfahrungswerte und variieren je nach Baustelle, Objektgröße und maschineller Ausrüstung.",null,null,null,null,null,null,null,null,null,null,null,null,null,null,null,null,null,null,null,null,null,null,null,null,null,null,null,null,null,null,null,null,null,null,null,null,null,null,null,null,null,null,null,null,null,null,null,null,{"$f":"HOME!AY26","v":"© Gunnar Schmidt     2023 v3063"}]

{"sheet":"Verbrauchsrechner-Monodrän","index":2,"n_rows":363,"n_cols":92,"rows_kept":363,"cut":false,"hidden":false,"merged":[[4,1,4,3],[4,5,4,7],[0,14,4,45],[14,13,14,17],[16,43,16,44],[11,9,11,36],[16,28,16,29],[16,33,16,34],[16,38,16,39],[11,5,11,7],[9,13,9,40],[23,8,23,10],[16,23,16,24],[16,1,16,8],[21,13,21,40],[32,30,32,38],[29,5,29,7],[30,5,30,7],[31,5,31,7],[32,5,32,7],[24,5,24,8],[24,13,24,20],[23,5,23,7],[38,4,38,7],[38,8,38,10],[32,9,32,15],[50,22,50,23],[38,28,38,50],[39,22,39,23],[30,40,32,43],[42,22,42,23],[42,26,42,50],[39,26,39,50],[31,9,31,38],[38,13,38,17],[38,20,38,24],[46,22,46,23],[46,26,46,50],[44,22,44,23],[86,61,86,63],[120,66,120,67],[53,26,53,50],[60,22,60,23],[44,26,44,50],[48,22,48,23],[48,26,48,50],[53,22,53,23],[56,22,56,23],[56,26,56,50],[50,26,50,50],[9,47,29,51],[251,86,251,91],[324,57,324,58],[324,62,324,63],[251,72,251,77],[251,66,251,67],[306,60,306,63],[276,62,276,63],[262,61,262,63],[251,78,251,83],[251,84,251,85],[141,61,141,63],[60,26,60,50],[104,61,104,63],[120,61,120,63],[131,61,131,63],[350,61,350,63],[350,66,350,67],[360,61,360,63],[360,66,360,67],[58,22,58,23],[58,26,58,50],[151,66,151,67],[171,61,171,63],[251,52,251,53],[251,61,251,64],[186,62,186,63],[151,61,151,63],[161,66,161,67],[141,66,141,67],[161,61,161,63],[171,66,171,67]]}
[null,{"$f":"NOW()","v":"2023-08-01T19:36:13.950"},"Uhr",null,null,null,null,null,null,null,null,null,null,null,"Verbrauchsrechner"]
[]
[]
[]
[null,"Größe der Fläche",null,null,null,0,null,null,"m²"]
["m",null,"m",null,"m",0,"m",null,null,"m",null,1,"m",{"$f":"L6*10","v":10},"m",null,null,null,null,null,null,null,null,null,null,null,null,null,null,null,null,null,null,null,null,null,null,null,null,null,null,null,null,null,null,null,null,null,null,null,null,"m"]
[null,null,null,null,null,null,null,null,null,null,null,null,null,null,null,null,null,null,null,null,null,null,null,null,null,null,null,null,null,null,null,null,null,null,null,null,null,null,null,null,null,null,null,null,null,"für gräfix Monodrän-Bindemittel"]
[null,null,"Naturstein",null,null,null,null,"Keramik / Feinsteinzeug  ",null,null,null,null,null,null,null,null,null,null,null,null,null,null,null,null,null,null,null,null,null,null,null,null,null,null,null,null,null,null,null,null,null,null,null,null,null,null,null,null,null,null,null,null,null,"x"]
[null,"Mögliche Untergründe"]
[null,"Art",null,null,null,null,null,null,null,null,null,null,null,{"$f":"IF(AND(BB76=1,BB109=1),\"Abdichtung auf Untergrund erforderlich\",\"\")","v":"Abdichtung auf Untergrund erforderlich"},null,null,null,null,null,null,null,null,null,null,null,null,null,null,null,null,null,null,null,null,null,null,null,null,null,null,null,null,null,null,null,null,null,"Navigation"]
[]
[null,null,null,"Aufbaustärke",null,0,null,null,"mm",{"$f":"BB85","v":"mind. 40 mm Aufbauhöhe"}]
[]
[null,"Abdichtung"]
[null,"Bereich",null,null,null,null,null,null,null,null,null,"Auftragstärke",null,0,null,null,null,null,null,"mm"]
[]
[null,{"$f":"BB113","v":0},null,null,null,null,null,null,null,null,null,null,null,null,null,null,null,null,null,null,null,null,null,0,null,"lfm",null,null,0,null,"Stk",null,null,0,null,"Stk",null,null,0,null,"Stk"]
[null,null,null,null,null,null,null,null,null,null,null,null,{"$f":"IF(B17=\"diese Kombination ist nicht möglich\",\"Gebindegrößen\",(CONCATENATE(\"Gebindegrößen\",BE120)))","v":"Gebindegrößen"}]
[]
[]
[null,"Kontaktschicht"]
[null,"Produkt",null,null,null,null,null,null,null,null,null,null,null,{"$f":"IF(BC8=\"x\",\"Ausschließlich Kleber mit Einstufung C2 nach DIN EN 12004\",\"\")","v":""}]
[]
[null,null,null,"   Zahnkelle",null,55,null,null,null,null,null,null,"Rabolin 126 - Haftemulsion-Konzentrat",null,null,null,null,null,null,null,null,null,null,null,null,null,null,null,null,null,null,null,null,null,null,null,null,null,null,null,null,null,null,null,null,null,null,null,null,null,null,null,null,false]
[]
[]
[null,"Fugenmörtel"]
[null,"Produkt",null,null,null,null,null,null,null,null,null,null,null,null,null,null,null,null,null,null,null,null,null,null,null,null,null,null,null,null,null,null,null,null,null,{"$f":"CONCATENATE(\"Gebindegrößen\",BE240)","v":"Gebindegrößen"}]
[]
[null,null,null,"Plattenbreite",null,0,null,null,"cm",null,null,null,"Rabolin 126 - Haftemulsion-Konzentrat",null,null,null,null,null,null,null,null,null,null,null,null,null,null,null,null,null,null,null,null,null,null,null,null,null,null,null,null,null,null,null,null,null,null,null,null,null,null,null,null,false]
[null,null,null,"Plattenlänge",null,0,null,null,"cm"]
[null,null,null,"Fugentiefe",null,0,null,null,"mm",{"$f":"BE242","v":""}]
[null,null,null,"Fugenbreite",null,0,null,null,"mm",{"$f":"BE241","v":""},null,null,null,null,null,null,null,null,null,null,null,null,null,null,null,null,null,null,null,null,{"$f":"IF(BB246=\"keine\",\"\",\"lieferbare Fugenfarben\")","v":""}]
[]
[]
[null,"Edelsplitt"]
[null,"Gesteinsart",null,null,null,null,null,null,null,null,"Körnung"]
[]
[null,null,null,"Produkte","Verbrauch pro m²   (lfm oder Stück)",null,null,null,"Gesamtverbrauch",null,null,"Anzahl",null,"Lieferform",null,null,null,null,null,null,"Liefermenge",null,null,null,null,null,null,null,"Bemerkungen"]
[null,"Bindemittel",null,{"$f":"BB78","v":"gräfix 418"},null,{"$f":"(F12/1000)/BB77*25","v":0},null,{"$f":"BB79","v":"kg"},{"$f":"F40*F5","v":0},null,{"$f":"BB79","v":"kg"},{"$f":"ROUNDUP(I40/BB104,0)","v":0},null,{"$f":"BB83","v":"Sack"},null,"á",null,{"$f":"BB104","v":"25"},null,{"$f":"BB79","v":"kg"},"≙",null,{"$f":"L40*R40","v":0},null,null,{"$f":"BB79","v":"kg"},{"$f":"BB84","v":"mind. 40 mm Aufbauhöhe / Abdichtung aus Dichtschlämme oder Schweißbahn erforderlich"}]
[]
[]
[null,"Abdichtung",null,{"$f":"BB111","v":0},null,{"$f":"BB110*N15","v":0},null,{"$f":"BB112","v":0},{"$f":"F43*F5","v":0},null,{"$f":"BB112","v":0},{"$f":"ROUNDUP(I43/BB130,0)","v":{"$error":"#DIV/0!"}},null,{"$f":"BB131","v":0},null,"á",null,{"$f":"BB130","v":0},null,{"$f":"BB112","v":0},"≙",null,{"$f":"L43*R43","v":{"$error":"#DIV/0!"}},null,null,{"$f":"BB112","v":0},{"$f":"BB113","v":0}]
[]
[null,{"$f":"IF(BE136=FALSE,\" \",BD143)","v":" "},null,{"$f":"BB138","v":0},null,{"$f":"BB137","v":0},null,{"$f":"BB139","v":0},{"$f":"X17*F45","v":0},null,{"$f":"BB139","v":0},{"$f":"ROUNDUP(I45/BB140,0)","v":{"$error":"#DIV/0!"}},null,{"$f":"BB141","v":0},null,"á",null,{"$f":"BB140","v":0},null,{"$f":"BB139","v":0},"≙",null,{"$f":"L45*R45","v":{"$error":"#DIV/0!"}},null,null,{"$f":"BB139","v":0}]
[]
[null,{"$f":"IF(BE146=FALSE,\" \",BD153)","v":" "},null,{"$f":"BB148","v":0},null,{"$f":"BB147","v":0},null,{"$f":"BB149","v":0},{"$f":"AC17*F47","v":0},null,{"$f":"BB149","v":0},{"$f":"ROUNDUP(I47/BB150,0)","v":{"$error":"#DIV/0!"}},null,{"$f":"BB151","v":0},null,"á",null,{"$f":"BB150","v":0},null,{"$f":"BB149","v":0},"≙",null,{"$f":"L47*R47","v":{"$error":"#DIV/0!"}},null,null,{"$f":"BB149","v":0}]
[]
[null,{"$f":"IF(BE156=FALSE,\" \",BD163)","v":" "},null,{"$f":"BB158","v":0},null,{"$f":"BB157","v":0},null,{"$f":"BB159","v":0},{"$f":"AH17*F49","v":0},null,{"$f":"BB159","v":0},{"$f":"ROUNDUP(I49/BB160,0)","v":{"$error":"#DIV/0!"}},null,{"$f":"BB161","v":0},null,"á",null,{"$f":"BB160","v":0},null,{"$f":"BB159","v":0},"≙",null,{"$f":"L49*R49","v":{"$error":"#DIV/0!"}},null,null,{"$f":"BB159","v":0}]
[]
[null,{"$f":"IF(BE142=FALSE,\" \",BD149)","v":" "},null,{"$f":"BB168","v":0},null,{"$f":"BB167","v":0},null,{"$f":"BB169","v":0},{"$f":"AM17*F51","v":0},null,{"$f":"BB169","v":0},{"$f":"ROUNDUP(I51/BB170,0)","v":{"$error":"#DIV/0!"}},null,{"$f":"BB171","v":0},null,"á",null,{"$f":"BB170","v":0},null,{"$f":"BB169","v":0},"≙",null,{"$f":"L51*R51","v":{"$error":"#DIV/0!"}},null,null,{"$f":"BB169","v":0}]
[]
[]
[null,"Kontaktkleber",null,{"$f":"BB180","v":0},null,{"$f":"BB179","v":0},null,{"$f":"BB181","v":0},{"$f":"F54*F5","v":0},null,{"$f":"BB181","v":0},{"$f":"ROUNDUP(I54/BB182,0)","v":{"$error":"#DIV/0!"}},null,{"$f":"BB183","v":0},null,"á",null,{"$f":"BB182","v":0},null,{"$f":"BB181","v":0},"≙",null,{"$f":"L54*R54/1000","v":{"$error":"#DIV/0!"}},null,null,"to"]
[]
[]
[null,"Fugenmörtel",null,{"$f":"IF(BA262=\" \",\"\",(CONCATENATE(BB232,BA262,BB317)))","v":"0keinekeine"},null,{"$f":"BC228/BC229","v":{"$error":"#DIV/0!"}},null,{"$f":"BB233","v":0},{"$f":"BC228","v":{"$error":"#DIV/0!"}},null,{"$f":"BB233","v":0},{"$f":"ROUNDUP(I57/BB262,0)","v":{"$error":"#DIV/0!"}},null,{"$f":"BB261","v":0},null,"á",null,{"$f":"BB262","v":0},null,{"$f":"BB233","v":0},"≙",null,{"$f":"L57*R57","v":{"$error":"#DIV/0!"}},null,null,{"$f":"BB233","v":0},{"$f":"CONCATENATE(BE242,BE243,BE241)","v":""}]
[]
[null,"Vergütung",null,{"$f":"BB354","v":""},null,{"$f":"I59/F5","v":{"$error":"#DIV/0!"}},null,{"$f":"BB186","v":0},{"$f":"BJ354","v":0},null,{"$f":"BB186","v":0},{"$f":"ROUNDUP(I59/BB359,0)","v":{"$error":"#DIV/0!"}},null,{"$f":"BB350","v":0},null,"á",null,{"$f":"BB359","v":0},null,{"$f":"BB186","v":0},"≙",null,{"$f":"L59*R59/1000","v":{"$error":"#DIV/0!"}},null,null,"to"]
[]
[null,"Edelsplitt",null,{"$f":"BB273","v":"Basalt-Edelsplitt"},null,{"$f":"(F12/1000)*BB307","v":0},null,{"$f":"BB271","v":"to"},{"$f":"F5*(F12/1000)*BB307","v":0},null,{"$f":"BB271","v":"to"},null,null,null,null,"á",null,null,null,null,"≙",null,{"$f":"I61","v":0},null,null,{"$f":"BB271","v":"to"}]
[]
[]
[]
[]
[]
[null,"Alle Angaben sind Durchschnittsverbrauchswerte und lediglich als Kalkulationshilfe gedacht. Sie haben bei Verrechnung keine Gültigkeit. Gewährleistungsansprüche können daraus "]
[null,"nicht abgeleitet werden. Die hier gemachten Angaben sind unverbindliche Erfahrungswerte und variieren je nach Baustelle, Objektgröße und maschineller Ausrüstung.",null,null,null,null,null,null,null,null,null,null,null,null,null,null,null,null,null,null,null,null,null,null,null,null,null,null,null,null,null,null,null,null,null,null,null,null,null,null,null,null,null,null,null,null,null,null,null,null,{"$f":"HOME!AY26","v":"© Gunnar Schmidt     2023 v3063"}]
[]
[]
[]
[]
[]
[]
[]
[null,null,null,null,null,null,null,null,null,null,null,null,null,null,null,null,null,null,null,null,null,null,null,null,null,null,null,null,null,null,null,null,null,null,null,null,null,null,null,null,null,null,null,null,null,null,null,null,null,null,null,null,null,1,"Auswahl / Steuerelement (Monodrän)"]
[null,null,null,null,null,null,null,null,null,null,null,null,null,null,null,null,null,null,null,null,null,null,null,null,null,null,null,null,null,null,null,null,null,null,null,null,null,null,null,null,null,null,null,null,null,null,null,null,null,null,null,null,null,{"$f":"INDEX(BD88:BG101,BB76,3)","v":0.125},"Auswahl / Faktor"]
[null,null,null,null,null,null,null,null,null,null,null,null,null,null,null,null,null,null,null,null,null,null,null,null,null,null,null,null,null,null,null,null,null,null,null,null,null,null,null,null,null,null,null,null,null,null,null,null,null,null,null,null,null,{"$f":"INDEX(BD88:BG101,BB76,4)","v":"gräfix 418"},"Auswahl / Produkt"]
[null,null,null,null,null,null,null,null,null,null,null,null,null,null,null,null,null,null,null,null,null,null,null,null,null,null,null,null,null,null,null,null,null,null,null,null,null,null,null,null,null,null,null,null,null,null,null,null,null,null,null,null,null,{"$f":"INDEX(BD88:BH101,BB76,5)","v":"kg"},"Auswahl / Einheit"]
[null,null,null,null,null,null,null,null,null,null,null,null,null,null,null,null,null,null,null,null,null,null,null,null,null,null,null,null,null,null,null,null,null,null,null,null,null,null,null,null,null,null,null,null,null,null,null,null,null,null,null,null,null,{"$f":"INDEX(BD88:BI101,BB76,6)","v":0}]
[null,null,null,null,null,null,null,null,null,null,null,null,null,null,null,null,null,null,null,null,null,null,null,null,null,null,null,null,null,null,null,null,null,null,null,null,null,null,null,null,null,null,null,null,null,null,null,null,null,null,null,null,null,{"$f":"INDEX(BD88:BJ101,BB76,7)","v":"25"},"Auswahl / Gebindegröße 1"]
[null,null,null,null,null,null,null,null,null,null,null,null,null,null,null,null,null,null,null,null,null,null,null,null,null,null,null,null,null,null,null,null,null,null,null,null,null,null,null,null,null,null,null,null,null,null,null,null,null,null,null,null,null,{"$f":"INDEX(BD88:BK101,BB76,8)","v":0}]
[null,null,null,null,null,null,null,null,null,null,null,null,null,null,null,null,null,null,null,null,null,null,null,null,null,null,null,null,null,null,null,null,null,null,null,null,null,null,null,null,null,null,null,null,null,null,null,null,null,null,null,null,null,{"$f":"INDEX(BD88:BL101,BB76,9)","v":"Sack"},"Auswahl / Gebinde"]
[null,null,null,null,null,null,null,null,null,null,null,null,null,null,null,null,null,null,null,null,null,null,null,null,null,null,null,null,null,null,null,null,null,null,null,null,null,null,null,null,null,null,null,null,null,null,null,null,null,null,null,null,null,{"$f":"INDEX(BD88:BQ101,BB76,14)","v":"mind. 40 mm Aufbauhöhe / Abdichtung aus Dichtschlämme oder Schweißbahn erforderlich"},"Auswahl / Bemerkung"]
[null,null,null,null,null,null,null,null,null,null,null,null,null,null,null,null,null,null,null,null,null,null,null,null,null,null,null,null,null,null,null,null,null,null,null,null,null,null,null,null,null,null,null,null,null,null,null,null,null,null,null,null,null,{"$f":"INDEX(BD88:BP101,BB76,10)","v":"mind. 40 mm Aufbauhöhe"},"Auswahl / Bemerkung (Aufbauhöhe)"]
[null,null,null,null,null,null,null,null,null,null,null,null,null,null,null,null,null,null,null,null,null,null,null,null,null,null,null,null,null,null,null,null,null,null,null,null,null,null,null,null,null,null,null,null,null,null,null,null,null,null,null,null,null,{"$f":"INDEX(BD88:BP101,BB76,13)","v":0}]
[null,null,null,null,null,null,null,null,null,null,null,null,null,null,null,null,null,null,null,null,null,null,null,null,null,null,null,null,null,null,null,null,null,null,null,null,null,null,null,null,null,null,null,null,null,null,null,null,null,null,null,null,null,null,"INDEX","Produkt",null,"Verbrach","Produkt","Einheit","Bermerkung","Gebinde",null,null,"Bemerkung (Aufbauhöhe mit \"WENN\"-Formel)","Bemerkung (Abdichtung)","Zeichen",null,"Bemerkung (verkettet)"]
[null,null,null,null,null,null,null,null,null,null,null,null,null,null,null,null,null,null,null,null,null,null,null,null,null,null,null,null,null,null,null,null,null,null,null,null,null,null,null,null,null,null,null,null,null,null,null,null,null,null,null,null,null,null,1,"außen und innen auf festem Untergrund (z. B. Betonplatte)",null,0.125,"gräfix 418","kg",null,"25",null,"Sack",{"$f":"IF(F12>=40,\"\",\"mind. 40 mm Aufbauhöhe\")","v":"mind. 40 mm Aufbauhöhe"},{"$f":"IF(BB109<2,\"Abdichtung aus Dichtschlämme oder Schweißbahn erforderlich\",\"\")","v":"Abdichtung aus Dichtschlämme oder Schweißbahn erforderlich"},{"$f":"IF(AND(BM88=\"mind. 40 mm Aufbauhöhe\",BN88=\"Abdichtung aus Dichtschlämme oder Schweißbahn erforderlich\"),\" / \",\"\")","v":" / "},null,{"$f":"CONCATENATE(BM88,BO88,BN88)","v":"mind. 40 mm Aufbauhöhe / Abdichtung aus Dichtschlämme oder Schweißbahn erforderlich"}]
[null,null,null,null,null,null,null,null,null,null,null,null,null,null,null,null,null,null,null,null,null,null,null,null,null,null,null,null,null,null,null,null,null,null,null,null,null,null,null,null,null,null,null,null,null,null,null,null,null,null,null,null,null,null,2,"außen als Tragschicht auf mineralischem Baustoffgemisch (z. B. Splitt-, Schotterschicht)",null,0.125,"gräfix 418","kg","diese Kombination ist nicht möglich","25",null,"Sack",{"$f":"IF(F12>=85,\"\",\"mind. 85 mm Aufbauhöhe\")","v":"mind. 85 mm Aufbauhöhe"},null,null,null,{"$f":"CONCATENATE(BM89,BO89,BN89)","v":"mind. 85 mm Aufbauhöhe"}]
[null,null,null,null,null,null,null,null,null,null,null,null,null,null,null,null,null,null,null,null,null,null,null,null,null,null,null,null,null,null,null,null,null,null,null,null,null,null,null,null,null,null,null,null,null,null,null,null,null,null,null,null,null,null,3,"außen und innen als Tragschicht auf Dämmung (z.B. Polystyrolplatten)",null,0.105,"gräfix 418","kg","diese Kombination ist nicht möglich","25",null,"Sack",{"$f":"IF(F12>=85,\"\",\"mind. 85 mm Aufbauhöhe\")","v":"mind. 85 mm Aufbauhöhe"},null,null,null,{"$f":"CONCATENATE(BM90,BO90,BN90)","v":"mind. 85 mm Aufbauhöhe"}]
[]
[]
[]
[]
[]
[]
[]
[]
[]
[]
[]
[]
[null,null,null,null,null,null,null,null,null,null,null,null,null,null,null,null,null,null,null,null,null,null,null,null,null,null,null,null,null,null,null,null,null,null,null,null,null,null,null,null,null,null,null,null,null,null,null,null,null,null,null,null,null,1,"Auswahl / Steuerelement (Aufbauhöhe Monodrän)"]
[null,null,null,null,null,null,null,null,null,null,null,null,null,null,null,null,null,null,null,null,null,null,null,null,null,null,null,null,null,null,null,null,null,null,null,null,null,null,null,null,null,null,null,null,null,null,null,null,null,null,null,null,null,{"$f":"INDEX(BD106:BM107,BB103,8)","v":"25"},"Auswahl / Gebindegröße"]
[null,null,null,null,null,null,null,null,null,null,null,null,null,null,null,null,null,null,null,null,null,null,null,null,null,null,null,null,null,null,null,null,null,null,null,null,null,null,null,null,null,null,null,null,null,null,null,null,null,null,null,null,null,null,"INDEX","Produkt",null,null,null,null,null,"Gebinde"]
[null,null,null,null,null,null,null,null,null,null,null,null,null,null,null,null,null,null,null,null,null,null,null,null,null,null,null,null,null,null,null,null,null,null,null,null,null,null,null,null,null,null,null,null,null,null,null,null,null,null,null,null,null,null,1,{"$f":"BB85","v":"mind. 40 mm Aufbauhöhe"},null,null,null,null,null,null,{"$f":"BB81","v":"25"}]
[null,null,null,null,null,null,null,null,null,null,null,null,null,null,null,null,null,null,null,null,null,null,null,null,null,null,null,null,null,null,null,null,null,null,null,null,null,null,null,null,null,null,null,null,null,null,null,null,null,null,null,null,null,null,2,{"$f":"BB86","v":0},null,null,null,null,null,null,{"$f":"BB82","v":0}]
[]
[null,null,null,null,null,null,null,null,null,null,null,null,null,null,null,null,null,null,null,null,null,null,null,null,null,null,null,null,null,null,null,null,null,null,null,null,null,null,null,null,null,null,null,null,null,null,null,null,null,null,null,null,null,1,"Auswahl / Steuerelement"]
[null,null,null,null,null,null,null,null,null,null,null,null,null,null,null,null,null,null,null,null,null,null,null,null,null,null,null,null,null,null,null,null,null,null,null,null,null,null,null,null,null,null,null,null,null,null,null,null,null,null,null,null,null,{"$f":"INDEX(BD122:BG127,BB109,3)","v":0},"Auswahl / Verbrauch pro m² und mm"]
[null,null,null,null,null,null,null,null,null,null,null,null,null,null,null,null,null,null,null,null,null,null,null,null,null,null,null,null,null,null,null,null,null,null,null,null,null,null,null,null,null,null,null,null,null,null,null,null,null,null,null,null,null,{"$f":"INDEX(BD122:BG127,BB109,4)","v":0},"Auswahl / Produkt"]
[null,null,null,null,null,null,null,null,null,null,null,null,null,null,null,null,null,null,null,null,null,null,null,null,null,null,null,null,null,null,null,null,null,null,null,null,null,null,null,null,null,null,null,null,null,null,null,null,null,null,null,null,null,{"$f":"INDEX(BD122:BH127,BB109,5)","v":0},"Auswahl / Einheit"]
[null,null,null,null,null,null,null,null,null,null,null,null,null,null,null,null,null,null,null,null,null,null,null,null,null,null,null,null,null,null,null,null,null,null,null,null,null,null,null,null,null,null,null,null,null,null,null,null,null,null,null,null,null,{"$f":"INDEX(BD122:BI127,BB109,6)","v":0},"Auswahl / Bemerkung"]
[null,null,null,null,null,null,null,null,null,null,null,null,null,null,null,null,null,null,null,null,null,null,null,null,null,null,null,null,null,null,null,null,null,null,null,null,null,null,null,null,null,null,null,null,null,null,null,null,null,null,null,null,null,{"$f":"INDEX(BD122:BJ127,BB109,7)","v":0},"Auswahl / Gebindegröße 1"]
[null,null,null,null,null,null,null,null,null,null,null,null,null,null,null,null,null,null,null,null,null,null,null,null,null,null,null,null,null,null,null,null,null,null,null,null,null,null,null,null,null,null,null,null,null,null,null,null,null,null,null,null,null,{"$f":"INDEX(BD122:BK127,BB109,8)","v":0},"Auswahl / Gebindegröße 2"]
[null,null,null,null,null,null,null,null,null,null,null,null,null,null,null,null,null,null,null,null,null,null,null,null,null,null,null,null,null,null,null,null,null,null,null,null,null,null,null,null,null,null,null,null,null,null,null,null,null,null,null,null,null,{"$f":"INDEX(BD122:BM127,BB109,9)","v":0},"Auswahl / Gebinde 1"]
[null,null,null,null,null,null,null,null,null,null,null,null,null,null,null,null,null,null,null,null,null,null,null,null,null,null,null,null,null,null,null,null,null,null,null,null,null,null,null,null,null,null,null,null,null,null,null,null,null,null,null,null,null,{"$f":"INDEX(BD122:BP127,BB109,11)","v":"  "},"Auswahl / Gebinde 2"]
[null,null,null,null,null,null,null,null,null,null,null,null,null,null,null,null,null,null,null,null,null,null,null,null,null,null,null,null,null,null,null,null,null,null,null,null,null,null,null,null,null,null,null,null,null,null,null,null,null,null,null,null,null,{"$f":"INDEX(BD122:BQ127,BB109,12)","v":"keine"},"Auswahl / Gebinde-Bezeichnung 1"]
[null,null,null,null,null,null,null,null,null,null,null,null,null,null,null,null,null,null,null,null,null,null,null,null,null,null,null,null,null,null,null,null,null,null,null,null,null,null,null,null,null,null,null,null,null,null,null,null,null,null,null,null,null,{"$f":"INDEX(BD122:BQ127,BB109,13)","v":"    "},"Auswahl / Gebinde-Bezeichnung 2"]
[null,null,null,null,null,null,null,null,null,null,null,null,null,null,null,null,null,null,null,null,null,null,null,null,null,null,null,null,null,null,null,null,null,null,null,null,null,null,null,null,null,null,null,null,null,null,null,null,null,null,null,null,null,{"$f":"INDEX(BD122:BR127,BB109,14)","v":0},"Auswahl / Gebinde-Bezeichnung 2",null,{"$f":"IF(BB120=0,\"\",BB120)","v":""}]
[null,null,null,null,null,null,null,null,null,null,null,null,null,null,null,null,null,null,null,null,null,null,null,null,null,null,null,null,null,null,null,null,null,null,null,null,null,null,null,null,null,null,null,null,null,null,null,null,null,null,null,null,null,null,"INDEX","Produkt",null,"kg/m²/mm","Produkt","Einheit","Bemerkung","Gebinde",null,null,"Bemerkung zu Mittel- und Dickbettmörtel / Gebinde 2","Gebinde 2","Gebinde-Bezeichnung",null,"Bemerkung (Auswahlfeld - Gebindegröße)"]
[null,null,null,null,null,null,null,null,null,null,null,null,null,null,null,null,null,null,null,null,null,null,null,null,null,null,null,null,null,null,null,null,null,null,null,null,null,null,null,null,null,null,null,null,null,null,null,null,null,null,null,null,null,null,1,"keine",null,null,null,null,null,null,null,null,null,"  ","keine","    "]
[null,null,null,null,null,null,null,null,null,null,null,null,null,null,null,null,null,null,null,null,null,null,null,null,null,null,null,null,null,null,null,null,null,null,null,null,null,null,null,null,null,null,null,null,null,null,null,null,null,null,null,null,null,null,2,"Außenbereich",null,1.5,"gräfix 351","kg",{"$f":"BB80","v":0},"20","  ","Sack",null,"  ","20 kg Sack","  "," für gräfix 351 - Dichtschlämme 1K flex"]
[null,null,null,null,null,null,null,null,null,null,null,null,null,null,null,null,null,null,null,null,null,null,null,null,null,null,null,null,null,null,null,null,null,null,null,null,null,null,null,null,null,null,null,null,null,null,null,null,null,null,null,null,null,null,3]
[null,null,null,null,null,null,null,null,null,null,null,null,null,null,null,null,null,null,null,null,null,null,null,null,null,null,null,null,null,null,null,null,null,null,null,null,null,null,null,null,null,null,null,null,null,null,null,null,null,null,null,null,null,null,4]
[null,null,null,null,null,null,null,null,null,null,null,null,null,null,null,null,null,null,null,null,null,null,null,null,null,null,null,null,null,null,null,null,null,null,null,null,null,null,null,null,null,null,null,null,null,null,null,null,null,null,null,null,null,null,5]
[null,null,null,null,null,null,null,null,null,null,null,null,null,null,null,null,null,null,null,null,null,null,null,null,null,null,null,null,null,null,null,null,null,null,null,null,null,null,null,null,null,null,null,null,null,null,null,null,null,null,null,null,null,null,6]
[]
[null,null,null,null,null,null,null,null,null,null,null,null,null,null,null,null,null,null,null,null,null,null,null,null,null,null,null,null,null,null,null,null,null,null,null,null,null,null,null,null,null,null,null,null,null,null,null,null,null,null,null,null,null,1,"Auswahl / Steuerelement (Gebindegröße der Abdichtung)"]
[null,null,null,null,null,null,null,null,null,null,null,null,null,null,null,null,null,null,null,null,null,null,null,null,null,null,null,null,null,null,null,null,null,null,null,null,null,null,null,null,null,null,null,null,null,null,null,null,null,null,null,null,null,{"$f":"INDEX(BD133:BM134,BB129,8)","v":0},"Auswahl / Gebindegröße"]
[null,null,null,null,null,null,null,null,null,null,null,null,null,null,null,null,null,null,null,null,null,null,null,null,null,null,null,null,null,null,null,null,null,null,null,null,null,null,null,null,null,null,null,null,null,null,null,null,null,null,null,null,null,{"$f":"INDEX(BD133:BM134,BB129,9)","v":0},"Auswahl / Gebindeart"]
[null,null,null,null,null,null,null,null,null,null,null,null,null,null,null,null,null,null,null,null,null,null,null,null,null,null,null,null,null,null,null,null,null,null,null,null,null,null,null,null,null,null,null,null,null,null,null,null,null,null,null,null,null,null,"INDEX","Produkt",null,null,null,null,null,"Gebinde"]
[null,null,null,null,null,null,null,null,null,null,null,null,null,null,null,null,null,null,null,null,null,null,null,null,null,null,null,null,null,null,null,null,null,null,null,null,null,null,null,null,null,null,null,null,null,null,null,null,null,null,null,null,null,null,1,{"$f":"IF(BB113=\"diese Kombination ist nicht möglich\",\"\",BB118)","v":"keine"},null,null,null,null,null,null,{"$f":"BB114","v":0},{"$f":"BB116","v":0}]
[null,null,null,null,null,null,null,null,null,null,null,null,null,null,null,null,null,null,null,null,null,null,null,null,null,null,null,null,null,null,null,null,null,null,null,null,null,null,null,null,null,null,null,null,null,null,null,null,null,null,null,null,null,null,2,{"$f":"BB119","v":"    "},null,null,null,null,null,null,{"$f":"BB115","v":0},{"$f":"BB117","v":"  "}]
[]
[null,null,null,null,null,null,null,null,null,null,null,null,null,null,null,null,null,null,null,null,null,null,null,null,null,null,null,null,null,null,null,null,null,null,null,null,null,null,null,null,null,null,null,null,null,null,null,null,null,null,null,null,null,{"$f":"IF(BE136=TRUE,\"1\",\"2\")","v":"2"},"Auswahl / Steuerelement (Dichtband)",null,false]
[null,null,null,null,null,null,null,null,null,null,null,null,null,null,null,null,null,null,null,null,null,null,null,null,null,null,null,null,null,null,null,null,null,null,null,null,null,null,null,null,null,null,null,null,null,null,null,null,null,null,null,null,null,{"$f":"INDEX(BD143:BP144,BB136,3)","v":0},"Auswahl / Verbrauch pro m"]
[null,null,null,null,null,null,null,null,null,null,null,null,null,null,null,null,null,null,null,null,null,null,null,null,null,null,null,null,null,null,null,null,null,null,null,null,null,null,null,null,null,null,null,null,null,null,null,null,null,null,null,null,null,{"$f":"INDEX(BD143:BP144,BB136,4)","v":0},"Auswahl / Produkt"]
[null,null,null,null,null,null,null,null,null,null,null,null,null,null,null,null,null,null,null,null,null,null,null,null,null,null,null,null,null,null,null,null,null,null,null,null,null,null,null,null,null,null,null,null,null,null,null,null,null,null,null,null,null,{"$f":"INDEX(BD143:BP144,BB136,5)","v":0},"Auswahl / Einheit"]
[null,null,null,null,null,null,null,null,null,null,null,null,null,null,null,null,null,null,null,null,null,null,null,null,null,null,null,null,null,null,null,null,null,null,null,null,null,null,null,null,null,null,null,null,null,null,null,null,null,null,null,null,null,{"$f":"INDEX(BD143:BP144,BB136,7)","v":0},"Auswahl / Gebindegröße"]
[null,null,null,null,null,null,null,null,null,null,null,null,null,null,null,null,null,null,null,null,null,null,null,null,null,null,null,null,null,null,null,null,null,null,null,null,null,null,null,null,null,null,null,null,null,null,null,null,null,null,null,null,null,{"$f":"INDEX(BD143:BP144,BB136,9)","v":0},"Auswahl / Gebindeart"]
[null,null,null,null,null,null,null,null,null,null,null,null,null,null,null,null,null,null,null,null,null,null,null,null,null,null,null,null,null,null,null,null,null,null,null,null,null,null,null,null,null,null,null,null,null,null,null,null,null,null,null,null,null,null,"INDEX","Produkt",null,"lfm","Produkt","Einheit","Bemerkung zu Mittel- und Dickbettmörtel / Gebinde 1","Gebinde",null,null,"Bemerkung zu Mittel- und Dickbettmörtel / Gebinde 2","Gebinde 2","Gebinde-Bezeichnung"]
[null,null,null,null,null,null,null,null,null,null,null,null,null,null,null,null,null,null,null,null,null,null,null,null,null,null,null,null,null,null,null,null,null,null,null,null,null,null,null,null,null,null,null,null,null,null,null,null,null,null,null,null,null,null,1,"Dichtband",null,1,"gräfix 353","m",null,"50",null,"Rolle",null,"  ","keine","    "]
[null,null,null,null,null,null,null,null,null,null,null,null,null,null,null,null,null,null,null,null,null,null,null,null,null,null,null,null,null,null,null,null,null,null,null,null,null,null,null,null,null,null,null,null,null,null,null,null,null,null,null,null,null,null,2]
[]
[null,null,null,null,null,null,null,null,null,null,null,null,null,null,null,null,null,null,null,null,null,null,null,null,null,null,null,null,null,null,null,null,null,null,null,null,null,null,null,null,null,null,null,null,null,null,null,null,null,null,null,null,null,{"$f":"IF(BE146=TRUE,\"1\",\"2\")","v":"2"},"Auswahl / Steuerelement (Dichtecke / innen)",null,false]
[null,null,null,null,null,null,null,null,null,null,null,null,null,null,null,null,null,null,null,null,null,null,null,null,null,null,null,null,null,null,null,null,null,null,null,null,null,null,null,null,null,null,null,null,null,null,null,null,null,null,null,null,null,{"$f":"INDEX(BD153:BP154,BB146,3)","v":0},"Auswahl / Verbrauch pro Stück"]
[null,null,null,null,null,null,null,null,null,null,null,null,null,null,null,null,null,null,null,null,null,null,null,null,null,null,null,null,null,null,null,null,null,null,null,null,null,null,null,null,null,null,null,null,null,null,null,null,null,null,null,null,null,{"$f":"INDEX(BD153:BP154,BB146,4)","v":0},"Auswahl / Produkt"]
[null,null,null,null,null,null,null,null,null,null,null,null,null,null,null,null,null,null,null,null,null,null,null,null,null,null,null,null,null,null,null,null,null,null,null,null,null,null,null,null,null,null,null,null,null,null,null,null,null,null,null,null,null,{"$f":"INDEX(BD153:BP154,BB146,5)","v":0},"Auswahl / Einheit"]
[null,null,null,null,null,null,null,null,null,null,null,null,null,null,null,null,null,null,null,null,null,null,null,null,null,null,null,null,null,null,null,null,null,null,null,null,null,null,null,null,null,null,null,null,null,null,null,null,null,null,null,null,null,{"$f":"INDEX(BD153:BP154,BB146,7)","v":0},"Auswahl / Gebindegröße"]
[null,null,null,null,null,null,null,null,null,null,null,null,null,null,null,null,null,null,null,null,null,null,null,null,null,null,null,null,null,null,null,null,null,null,null,null,null,null,null,null,null,null,null,null,null,null,null,null,null,null,null,null,null,{"$f":"INDEX(BD153:BP154,BB146,9)","v":0},"Auswahl / Gebindeart"]
[null,null,null,null,null,null,null,null,null,null,null,null,null,null,null,null,null,null,null,null,null,null,null,null,null,null,null,null,null,null,null,null,null,null,null,null,null,null,null,null,null,null,null,null,null,null,null,null,null,null,null,null,null,null,"INDEX","Produkt",null,"Stück","Produkt","Einheit","Bemerkung zu Mittel- und Dickbettmörtel / Gebinde 1","Gebinde",null,null,"Bemerkung zu Mittel- und Dickbettmörtel / Gebinde 2","Gebinde 2","Gebinde-Bezeichnung"]
[null,null,null,null,null,null,null,null,null,null,null,null,null,null,null,null,null,null,null,null,null,null,null,null,null,null,null,null,null,null,null,null,null,null,null,null,null,null,null,null,null,null,null,null,null,null,null,null,null,null,null,null,null,null,1,"Dichtecke, innen",null,1,"gräfix 3541","Stück",null,"10",null,"Karton",null,"  ","keine","    "]
[null,null,null,null,null,null,null,null,null,null,null,null,null,null,null,null,null,null,null,null,null,null,null,null,null,null,null,null,null,null,null,null,null,null,null,null,null,null,null,null,null,null,null,null,null,null,null,null,null,null,null,null,null,null,2]
[]
[null,null,null,null,null,null,null,null,null,null,null,null,null,null,null,null,null,null,null,null,null,null,null,null,null,null,null,null,null,null,null,null,null,null,null,null,null,null,null,null,null,null,null,null,null,null,null,null,null,null,null,null,null,{"$f":"IF(BE156=TRUE,\"1\",\"2\")","v":"2"},"Auswahl / Steuerelement (Dichtecke / außen)",null,false]
[null,null,null,null,null,null,null,null,null,null,null,null,null,null,null,null,null,null,null,null,null,null,null,null,null,null,null,null,null,null,null,null,null,null,null,null,null,null,null,null,null,null,null,null,null,null,null,null,null,null,null,null,null,{"$f":"INDEX(BD163:BP164,BB156,3)","v":0},"Auswahl / Verbrauch pro Stück"]
[null,null,null,null,null,null,null,null,null,null,null,null,null,null,null,null,null,null,null,null,null,null,null,null,null,null,null,null,null,null,null,null,null,null,null,null,null,null,null,null,null,null,null,null,null,null,null,null,null,null,null,null,null,{"$f":"INDEX(BD163:BP164,BB156,4)","v":0},"Auswahl / Produkt"]
[null,null,null,null,null,null,null,null,null,null,null,null,null,null,null,null,null,null,null,null,null,null,null,null,null,null,null,null,null,null,null,null,null,null,null,null,null,null,null,null,null,null,null,null,null,null,null,null,null,null,null,null,null,{"$f":"INDEX(BD163:BP164,BB156,5)","v":0},"Auswahl / Einheit"]
[null,null,null,null,null,null,null,null,null,null,null,null,null,null,null,null,null,null,null,null,null,null,null,null,null,null,null,null,null,null,null,null,null,null,null,null,null,null,null,null,null,null,null,null,null,null,null,null,null,null,null,null,null,{"$f":"INDEX(BD163:BP164,BB156,7)","v":0},"Auswahl / Gebindegröße"]
[null,null,null,null,null,null,null,null,null,null,null,null,null,null,null,null,null,null,null,null,null,null,null,null,null,null,null,null,null,null,null,null,null,null,null,null,null,null,null,null,null,null,null,null,null,null,null,null,null,null,null,null,null,{"$f":"INDEX(BD163:BP164,BB156,9)","v":0},"Auswahl / Gebindeart"]
[null,null,null,null,null,null,null,null,null,null,null,null,null,null,null,null,null,null,null,null,null,null,null,null,null,null,null,null,null,null,null,null,null,null,null,null,null,null,null,null,null,null,null,null,null,null,null,null,null,null,null,null,null,null,"INDEX","Produkt",null,"Stück","Produkt","Einheit","Bemerkung zu Mittel- und Dickbettmörtel / Gebinde 1","Gebinde",null,null,"Bemerkung zu Mittel- und Dickbettmörtel / Gebinde 2","Gebinde 2","Gebinde-Bezeichnung"]
[null,null,null,null,null,null,null,null,null,null,null,null,null,null,null,null,null,null,null,null,null,null,null,null,null,null,null,null,null,null,null,null,null,null,null,null,null,null,null,null,null,null,null,null,null,null,null,null,null,null,null,null,null,null,1,"Dichtecke, außen",null,1,"gräfix 3542","Stück",null,"10",null,"Karton",null,"  ","keine","    "]
[null,null,null,null,null,null,null,null,null,null,null,null,null,null,null,null,null,null,null,null,null,null,null,null,null,null,null,null,null,null,null,null,null,null,null,null,null,null,null,null,null,null,null,null,null,null,null,null,null,null,null,null,null,null,2]
[]
[null,null,null,null,null,null,null,null,null,null,null,null,null,null,null,null,null,null,null,null,null,null,null,null,null,null,null,null,null,null,null,null,null,null,null,null,null,null,null,null,null,null,null,null,null,null,null,null,null,null,null,null,null,{"$f":"IF(BE166=TRUE,\"1\",\"2\")","v":"2"},"Auswahl / Steuerelement (Bodenmanschette)",null,false]
[null,null,null,null,null,null,null,null,null,null,null,null,null,null,null,null,null,null,null,null,null,null,null,null,null,null,null,null,null,null,null,null,null,null,null,null,null,null,null,null,null,null,null,null,null,null,null,null,null,null,null,null,null,{"$f":"INDEX(BD173:BP174,BB166,3)","v":0},"Auswahl / Verbrauch pro Stück"]
[null,null,null,null,null,null,null,null,null,null,null,null,null,null,null,null,null,null,null,null,null,null,null,null,null,null,null,null,null,null,null,null,null,null,null,null,null,null,null,null,null,null,null,null,null,null,null,null,null,null,null,null,null,{"$f":"INDEX(BD173:BP174,BB166,4)","v":0},"Auswahl / Produkt"]
[null,null,null,null,null,null,null,null,null,null,null,null,null,null,null,null,null,null,null,null,null,null,null,null,null,null,null,null,null,null,null,null,null,null,null,null,null,null,null,null,null,null,null,null,null,null,null,null,null,null,null,null,null,{"$f":"INDEX(BD173:BP174,BB166,5)","v":0},"Auswahl / Einheit"]
[null,null,null,null,null,null,null,null,null,null,null,null,null,null,null,null,null,null,null,null,null,null,null,null,null,null,null,null,null,null,null,null,null,null,null,null,null,null,null,null,null,null,null,null,null,null,null,null,null,null,null,null,null,{"$f":"INDEX(BD173:BP174,BB166,7)","v":0},"Auswahl / Gebindegröße"]
[null,null,null,null,null,null,null,null,null,null,null,null,null,null,null,null,null,null,null,null,null,null,null,null,null,null,null,null,null,null,null,null,null,null,null,null,null,null,null,null,null,null,null,null,null,null,null,null,null,null,null,null,null,{"$f":"INDEX(BD173:BP174,BB166,9)","v":0},"Auswahl / Gebindeart"]
[null,null,null,null,null,null,null,null,null,null,null,null,null,null,null,null,null,null,null,null,null,null,null,null,null,null,null,null,null,null,null,null,null,null,null,null,null,null,null,null,null,null,null,null,null,null,null,null,null,null,null,null,null,null,"INDEX","Produkt",null,"Stück","Produkt","Einheit","Bemerkung zu Mittel- und Dickbettmörtel / Gebinde 1","Gebinde",null,null,"Bemerkung zu Mittel- und Dickbettmörtel / Gebinde 2","Gebinde 2","Gebinde-Bezeichnung"]
[null,null,null,null,null,null,null,null,null,null,null,null,null,null,null,null,null,null,null,null,null,null,null,null,null,null,null,null,null,null,null,null,null,null,null,null,null,null,null,null,null,null,null,null,null,null,null,null,null,null,null,null,null,null,1,"Bodenmanschette",null,1,"gräfix 356","Stück",null,"5",null,"Karton",null,"  ","keine","    "]
[null,null,null,null,null,null,null,null,null,null,null,null,null,null,null,null,null,null,null,null,null,null,null,null,null,null,null,null,null,null,null,null,null,null,null,null,null,null,null,null,null,null,null,null,null,null,null,null,null,null,null,null,null,null,2]
[]
[]
[null,null,null,null,null,null,null,null,null,null,null,null,null,null,null,null,null,null,null,null,null,null,null,null,null,null,null,null,null,null,null,null,null,null,null,null,null,null,null,null,null,null,null,null,null,null,null,null,null,null,null,null,null,1,"Auswahl / Steuerelemt (Kleber / Mörtel)"]
[null,null,null,null,null,null,null,null,null,null,null,null,null,null,null,null,null,null,null,null,null,null,null,null,null,null,null,null,null,null,null,null,null,null,null,null,null,null,null,null,null,null,null,null,null,null,null,null,null,null,null,null,null,{"$f":"INDEX(BD188:BM215,BB177,2)","v":1},"Auswahl / Verbrauch pro m² und Höhe (zusätzlich \"0\" für bedingte Formatierung)"]
[null,null,null,null,null,null,null,null,null,null,null,null,null,null,null,null,null,null,null,null,null,null,null,null,null,null,null,null,null,null,null,null,null,null,null,null,null,null,null,null,null,null,null,null,null,null,null,null,null,null,null,null,null,{"$f":"INDEX(BD188:BM215,BB177,3)","v":0},"Auswahl / Verbrauch pro m² und Höhe"]
[null,null,null,null,null,null,null,null,null,null,null,null,null,null,null,null,null,null,null,null,null,null,null,null,null,null,null,null,null,null,null,null,null,null,null,null,null,null,null,null,null,null,null,null,null,null,null,null,null,null,null,null,null,{"$f":"INDEX(BD188:BM215,BB177,4)","v":0},"Auswahl / Produkt"]
[null,null,null,null,null,null,null,null,null,null,null,null,null,null,null,null,null,null,null,null,null,null,null,null,null,null,null,null,null,null,null,null,null,null,null,null,null,null,null,null,null,null,null,null,null,null,null,null,null,null,null,null,null,{"$f":"INDEX(BD188:BM215,BB177,5)","v":0},"Auswahl / Einheit"]
[null,null,null,null,null,null,null,null,null,null,null,null,null,null,null,null,null,null,null,null,null,null,null,null,null,null,null,null,null,null,null,null,null,null,null,null,null,null,null,null,null,null,null,null,null,null,null,null,null,null,null,null,null,{"$f":"INDEX(BD188:BM215,BB177,8)","v":0},"Auswahl / Gebindegröße"]
[null,null,null,null,null,null,null,null,null,null,null,null,null,null,null,null,null,null,null,null,null,null,null,null,null,null,null,null,null,null,null,null,null,null,null,null,null,null,null,null,null,null,null,null,null,null,null,null,null,null,null,null,null,{"$f":"INDEX(BD188:BM215,BB177,9)","v":0},"Auswahl / Gebindegröße"]
[null,null,null,null,null,null,null,null,null,null,null,null,null,null,null,null,null,null,null,null,null,null,null,null,null,null,null,null,null,null,null,null,null,null,null,null,null,null,null,null,null,null,null,null,null,null,null,null,null,null,null,null,null,null,"Auswahl / Bemerkung zur Abdichtung"]
[null,null,null,null,null,null,null,null,null,null,null,null,null,null,null,null,null,null,null,null,null,null,null,null,null,null,null,null,null,null,null,null,null,null,null,null,null,null,null,null,null,null,null,null,null,null,null,null,null,null,null,null,null,{"$f":"INDEX(BD188:BM215,BB177,10)","v":0},"Auswahl / Anmachwasser in Liter/Sack"]
[null,null,null,null,null,null,null,null,null,null,null,null,null,null,null,null,null,null,null,null,null,null,null,null,null,null,null,null,null,null,null,null,null,null,null,null,null,null,null,null,null,null,null,null,null,null,null,null,null,null,null,null,null,{"$f":"INDEX(BD188:BN215,BB177,11)","v":0},"Auswahl / Bemerkung zur Grundierung R 190"]
[null,null,null,null,null,null,null,null,null,null,null,null,null,null,null,null,null,null,null,null,null,null,null,null,null,null,null,null,null,null,null,null,null,null,null,null,null,null,null,null,null,null,null,null,null,null,null,null,null,null,null,null,null,null,"INDEX","Produkt","kg/m²/mm","kg/m²/h","Produkt","Einheit","Bemerkung zur Abdichtung",null,"Gebinde",null,"Anmachwasser in Liter/Sack","Bemerkung zur Grundierung R 190"]
[null,null,null,null,null,null,null,null,null,null,null,null,null,null,null,null,null,null,null,null,null,null,null,null,null,null,null,null,null,null,null,null,null,null,null,null,null,null,null,null,null,null,null,null,null,null,null,null,null,null,null,null,null,null,1,"keine",1]
[null,null,null,null,null,null,null,null,null,null,null,null,null,null,null,null,null,null,null,null,null,null,null,null,null,null,null,null,null,null,null,null,null,null,null,null,null,null,null,null,null,null,null,null,null,null,null,null,null,null,null,null,null,null,2,"gräfix 310 Standard Flex-Fliesenkleber, grau  bis 5 mm",0,{"$f":"BB218","v":5},"gräfix 310","kg","Nur mit Kontaktschicht aus einem gräfix C2 Dünn- oder Mittelbettkleber möglich",null,25,"Sack",7]
[null,null,null,null,null,null,null,null,null,null,null,null,null,null,null,null,null,null,null,null,null,null,null,null,null,null,null,null,null,null,null,null,null,null,null,null,null,null,null,null,null,null,null,null,null,null,null,null,null,null,null,null,null,null,3,"gräfix 32 Flex-Fliesenkleber, grau  bis 5 mm",0,{"$f":"BB218","v":5},"gräfix 32","kg",null,null,25,"Sack",7.5]
[null,null,null,null,null,null,null,null,null,null,null,null,null,null,null,null,null,null,null,null,null,null,null,null,null,null,null,null,null,null,null,null,null,null,null,null,null,null,null,null,null,null,null,null,null,null,null,null,null,null,null,null,null,null,4,"gräfix 311 Natursteinkleber auf Trassbasis, grau  bis 5 mm",0,{"$f":"BB218","v":5},"gräfix 311","kg",null,null,25,"Sack",7]
[null,null,null,null,null,null,null,null,null,null,null,null,null,null,null,null,null,null,null,null,null,null,null,null,null,null,null,null,null,null,null,null,null,null,null,null,null,null,null,null,null,null,null,null,null,null,null,null,null,null,null,null,null,null,5,"gräfix 312 Natursteinkleber auf Trassbasis, weiß  bis 5 mm",0,{"$f":"BB218","v":5},"gräfix 312","kg",null,null,25,"Sack",7]
[null,null,null,null,null,null,null,null,null,null,null,null,null,null,null,null,null,null,null,null,null,null,null,null,null,null,null,null,null,null,null,null,null,null,null,null,null,null,null,null,null,null,null,null,null,null,null,null,null,null,null,null,null,null,6,{"$f":"IF(BC8=\"X\",BD335,\"gräfix 34 Mittelbettmörtel auf Trassbasis, grau  5 bis 20 mm\")","v":"gräfix 34 Mittelbettmörtel auf Trassbasis, grau  5 bis 20 mm"},0,{"$f":"BB218","v":5},{"$f":"IF(BC8=\"X\",BG335,\"gräfix 34\")","v":"gräfix 34"},"kg",null,null,25,"Sack",6.5]
[null,null,null,null,null,null,null,null,null,null,null,null,null,null,null,null,null,null,null,null,null,null,null,null,null,null,null,null,null,null,null,null,null,null,null,null,null,null,null,null,null,null,null,null,null,null,null,null,null,null,null,null,null,null,7,{"$f":"IF(BC8=\"X\",BD336,\"gräfix 34 fein Mittelbettmörtel auf Trassbasis, grau, fein  5 bis 15 mm\")","v":"gräfix 34 fein Mittelbettmörtel auf Trassbasis, grau, fein  5 bis 15 mm"},0,{"$f":"BB218","v":5},{"$f":"IF(BC8=\"X\",BG336,\"gräfix 34 fein\")","v":"gräfix 34 fein"},"kg",null,null,25,"Sack",6.5]
[null,null,null,null,null,null,null,null,null,null,null,null,null,null,null,null,null,null,null,null,null,null,null,null,null,null,null,null,null,null,null,null,null,null,null,null,null,null,null,null,null,null,null,null,null,null,null,null,null,null,null,null,null,null,8,{"$f":"IF(BC8=\"X\",BD336,\"gräfix 342 Mittelbettmörtel auf Trassbasis, weiß  5 bis 20 mm\")","v":"gräfix 342 Mittelbettmörtel auf Trassbasis, weiß  5 bis 20 mm"},0,{"$f":"BB218","v":5},{"$f":"IF(BC8=\"X\",BG336,\"gräfix 342\")","v":"gräfix 342"},"kg",null,null,25,"Sack",6.5]
[null,null,null,null,null,null,null,null,null,null,null,null,null,null,null,null,null,null,null,null,null,null,null,null,null,null,null,null,null,null,null,null,null,null,null,null,null,null,null,null,null,null,null,null,null,null,null,null,null,null,null,null,null,null,9,{"$f":"IF(BC8=\"X\",BD336,\"gräfix 343 Mittelbettmörtel auf Trassbasis, grau, flex  5 bis 20 mm\")","v":"gräfix 343 Mittelbettmörtel auf Trassbasis, grau, flex  5 bis 20 mm"},0,{"$f":"BB218","v":5},{"$f":"IF(BC8=\"X\",BG336,\"gräfix 343\")","v":"gräfix 343"},"kg",null,null,25,"Sack",6.5]
[null,null,null,null,null,null,null,null,null,null,null,null,null,null,null,null,null,null,null,null,null,null,null,null,null,null,null,null,null,null,null,null,null,null,null,null,null,null,null,null,null,null,null,null,null,null,null,null,null,null,null,null,null,null,10,{"$f":"IF(BC8=\"X\",BD336,\"gräfix 3423 Mittelbettmörtel auf Trassbasis, weiß, flex  5 bis 20 mm\")","v":"gräfix 3423 Mittelbettmörtel auf Trassbasis, weiß, flex  5 bis 20 mm"},0,{"$f":"BB218","v":5},{"$f":"IF(BC8=\"X\",BG336,\"gräfix 3423\")","v":"gräfix 3423"},"kg",null,null,25,"Sack",6.5]
[null,null,null,null,null,null,null,null,null,null,null,null,null,null,null,null,null,null,null,null,null,null,null,null,null,null,null,null,null,null,null,null,null,null,null,null,null,null,null,null,null,null,null,null,null,null,null,null,null,null,null,null,null,null,11,{"$f":"IF(BC8=\"X\",BD336,\"gräfix 3423 fein LithoRapid Mittelbettkleber, schnell, weiß  5 bis 15 mm\")","v":"gräfix 3423 fein LithoRapid Mittelbettkleber, schnell, weiß  5 bis 15 mm"},0,{"$f":"BB218","v":5},{"$f":"IF(BC8=\"X\",BG336,\"gräfix 3423 fein\")","v":"gräfix 3423 fein"},"kg",null,null,25,"Sack",6.5]
[null,null,null,null,null,null,null,null,null,null,null,null,null,null,null,null,null,null,null,null,null,null,null,null,null,null,null,null,null,null,null,null,null,null,null,null,null,null,null,null,null,null,null,null,null,null,null,null,null,null,null,null,null,null,12]
[null,null,null,null,null,null,null,null,null,null,null,null,null,null,null,null,null,null,null,null,null,null,null,null,null,null,null,null,null,null,null,null,null,null,null,null,null,null,null,null,null,null,null,null,null,null,null,null,null,null,null,null,null,null,13]
[null,null,null,null,null,null,null,null,null,null,null,null,null,null,null,null,null,null,null,null,null,null,null,null,null,null,null,null,null,null,null,null,null,null,null,null,null,null,null,null,null,null,null,null,null,null,null,null,null,null,null,null,null,null,14]
[null,null,null,null,null,null,null,null,null,null,null,null,null,null,null,null,null,null,null,null,null,null,null,null,null,null,null,null,null,null,null,null,null,null,null,null,null,null,null,null,null,null,null,null,null,null,null,null,null,null,null,null,null,null,15]
[null,null,null,null,null,null,null,null,null,null,null,null,null,null,null,null,null,null,null,null,null,null,null,null,null,null,null,null,null,null,null,null,null,null,null,null,null,null,null,null,null,null,null,null,null,null,null,null,null,null,null,null,null,null,16]
[null,null,null,null,null,null,null,null,null,null,null,null,null,null,null,null,null,null,null,null,null,null,null,null,null,null,null,null,null,null,null,null,null,null,null,null,null,null,null,null,null,null,null,null,null,null,null,null,null,null,null,null,null,null,17]
[null,null,null,null,null,null,null,null,null,null,null,null,null,null,null,null,null,null,null,null,null,null,null,null,null,null,null,null,null,null,null,null,null,null,null,null,null,null,null,null,null,null,null,null,null,null,null,null,null,null,null,null,null,null,18]
[null,null,null,null,null,null,null,null,null,null,null,null,null,null,null,null,null,null,null,null,null,null,null,null,null,null,null,null,null,null,null,null,null,null,null,null,null,null,null,null,null,null,null,null,null,null,null,null,null,null,null,null,null,null,19]
[null,null,null,null,null,null,null,null,null,null,null,null,null,null,null,null,null,null,null,null,null,null,null,null,null,null,null,null,null,null,null,null,null,null,null,null,null,null,null,null,null,null,null,null,null,null,null,null,null,null,null,null,null,null,20]
[null,null,null,null,null,null,null,null,null,null,null,null,null,null,null,null,null,null,null,null,null,null,null,null,null,null,null,null,null,null,null,null,null,null,null,null,null,null,null,null,null,null,null,null,null,null,null,null,null,null,null,null,null,null,21]
[null,null,null,null,null,null,null,null,null,null,null,null,null,null,null,null,null,null,null,null,null,null,null,null,null,null,null,null,null,null,null,null,null,null,null,null,null,null,null,null,null,null,null,null,null,null,null,null,null,null,null,null,null,null,22]
[null,null,null,null,null,null,null,null,null,null,null,null,null,null,null,null,null,null,null,null,null,null,null,null,null,null,null,null,null,null,null,null,null,null,null,null,null,null,null,null,null,null,null,null,null,null,null,null,null,null,null,null,null,null,23]
[null,null,null,null,null,null,null,null,null,null,null,null,null,null,null,null,null,null,null,null,null,null,null,null,null,null,null,null,null,null,null,null,null,null,null,null,null,null,null,null,null,null,null,null,null,null,null,null,null,null,null,null,null,null,24]
[null,null,null,null,null,null,null,null,null,null,null,null,null,null,null,null,null,null,null,null,null,null,null,null,null,null,null,null,null,null,null,null,null,null,null,null,null,null,null,null,null,null,null,null,null,null,null,null,null,null,null,null,null,null,25]
[null,null,null,null,null,null,null,null,null,null,null,null,null,null,null,null,null,null,null,null,null,null,null,null,null,null,null,null,null,null,null,null,null,null,null,null,null,null,null,null,null,null,null,null,null,null,null,null,null,null,null,null,null,null,26]
[null,null,null,null,null,null,null,null,null,null,null,null,null,null,null,null,null,null,null,null,null,null,null,null,null,null,null,null,null,null,null,null,null,null,null,null,null,null,null,null,null,null,null,null,null,null,null,null,null,null,null,null,null,null,27]
[null,null,null,null,null,null,null,null,null,null,null,null,null,null,null,null,null,null,null,null,null,null,null,null,null,null,null,null,null,null,null,null,null,null,null,null,null,null,null,null,null,null,null,null,null,null,null,null,null,null,null,null,null,null,27]
[]
[null,null,null,null,null,null,null,null,null,null,null,null,null,null,null,null,null,null,null,null,null,null,null,null,null,null,null,null,null,null,null,null,null,null,null,null,null,null,null,null,null,null,null,null,null,null,null,null,null,null,null,null,null,1,"Auswahl / Steuerelement (Zahnkelle)"]
[null,null,null,null,null,null,null,null,null,null,null,null,null,null,null,null,null,null,null,null,null,null,null,null,null,null,null,null,null,null,null,null,null,null,null,null,null,null,null,null,null,null,null,null,null,null,null,null,null,null,null,null,null,{"$f":"INDEX(BD219:BL224,BB217,4)","v":5},"Auswahl / Zahnkelle"]
[null,null,null,null,null,null,null,null,null,null,null,null,null,null,null,null,null,null,null,null,null,null,null,null,null,null,null,null,null,null,null,null,null,null,null,null,null,null,null,null,null,null,null,null,null,null,null,null,null,null,null,null,null,null,1,{"$f":"IF(BB178=0,\"10er Zahnung\",\" \")","v":" "},null,null,5,"kg"]
[null,null,null,null,null,null,null,null,null,null,null,null,null,null,null,null,null,null,null,null,null,null,null,null,null,null,null,null,null,null,null,null,null,null,null,null,null,null,null,null,null,null,null,null,null,null,null,null,null,null,null,null,null,null,2,{"$f":"IF(BB178=0,\"12,5er Zahnung\",\" \")","v":" "},null,null,6,"kg"]
[null,null,null,null,null,null,null,null,null,null,null,null,null,null,null,null,null,null,null,null,null,null,null,null,null,null,null,null,null,null,null,null,null,null,null,null,null,null,null,null,null,null,null,null,null,null,null,null,null,null,null,null,null,null,3,{"$f":"IF(BB178=0,\"15er Zahnung\",\" \")","v":" "},null,null,7,"kg"]
[null,null,null,null,null,null,null,null,null,null,null,null,null,null,null,null,null,null,null,null,null,null,null,null,null,null,null,null,null,null,null,null,null,null,null,null,null,null,null,null,null,null,null,null,null,null,null,null,null,null,null,null,null,null,4]
[null,null,null,null,null,null,null,null,null,null,null,null,null,null,null,null,null,null,null,null,null,null,null,null,null,null,null,null,null,null,null,null,null,null,null,null,null,null,null,null,null,null,null,null,null,null,null,null,null,null,null,null,null,null,5]
[null,null,null,null,null,null,null,null,null,null,null,null,null,null,null,null,null,null,null,null,null,null,null,null,null,null,null,null,null,null,null,null,null,null,null,null,null,null,null,null,null,null,null,null,null,null,null,null,null,null,null,null,null,null,6]
[]
[null,null,null,null,null,null,null,null,null,null,null,null,null,null,null,null,null,null,null,null,null,null,null,null,null,null,null,null,null,null,null,null,null,null,null,null,null,null,null,null,null,null,null,null,null,null,null,null,null,null,null,null,null,"Liter Fuge",{"$f":"((BC227*((BB253+BB258)+(BB254)))+((BB255)+(10-BB258)))*BB257*BB258","v":{"$error":"#DIV/0!"}}]
[null,null,null,null,null,null,null,null,null,null,null,null,null,null,null,null,null,null,null,null,null,null,null,null,null,null,null,null,null,null,null,null,null,null,null,null,null,null,null,null,null,null,null,null,null,null,null,null,null,null,null,null,null,"Anzahl Fliesen",{"$f":"F5/((F30/10+F33/100)*(F31/10+F33/100))*100","v":{"$error":"#DIV/0!"}},"m2 Fliesen",{"$f":"((F30*F31)/10000)*BC227","v":{"$error":"#DIV/0!"}}]
[null,null,null,null,null,null,null,null,null,null,null,null,null,null,null,null,null,null,null,null,null,null,null,null,null,null,null,null,null,null,null,null,null,null,null,null,null,null,null,null,null,null,null,null,null,null,null,null,null,null,null,null,null,"kg Fugenmasse",{"$f":"BC226*BB231","v":{"$error":"#DIV/0!"}}]
[null,null,null,null,null,null,null,null,null,null,null,null,null,null,null,null,null,null,null,null,null,null,null,null,null,null,null,null,null,null,null,null,null,null,null,null,null,null,null,null,null,null,null,null,null,null,null,null,null,null,null,null,null,"m2 Fläche",{"$f":"F5","v":0},"m2 Fuge",{"$f":"BC229-BE227","v":{"$error":"#DIV/0!"}}]
[null,null,null,null,null,null,null,null,null,null,null,null,null,null,null,null,null,null,null,null,null,null,null,null,null,null,null,null,null,null,null,null,null,null,null,null,null,null,null,null,null,null,null,null,null,null,null,null,null,null,null,null,null,1,"Auswahl / Steuerelement (Fugenmörtel)"]
[null,null,null,null,null,null,null,null,null,null,null,null,null,null,null,null,null,null,null,null,null,null,null,null,null,null,null,null,null,null,null,null,null,null,null,null,null,null,null,null,null,null,null,null,null,null,null,null,null,null,null,null,null,{"$f":"INDEX(BD253:BP258,BB230,2)","v":0},"Auswahl / kg pro Liter",null,{"$f":"INDEX(BD253:BP258,BB230,3)","v":0},"Anachwasser in Liter / Gebinde"]
[null,null,null,null,null,null,null,null,null,null,null,null,null,null,null,null,null,null,null,null,null,null,null,null,null,null,null,null,null,null,null,null,null,null,null,null,null,null,null,null,null,null,null,null,null,null,null,null,null,null,null,null,null,{"$f":"INDEX(BD253:BP258,BB230,4)","v":0},"Auswahl / Produkt"]
[null,null,null,null,null,null,null,null,null,null,null,null,null,null,null,null,null,null,null,null,null,null,null,null,null,null,null,null,null,null,null,null,null,null,null,null,null,null,null,null,null,null,null,null,null,null,null,null,null,null,null,null,null,{"$f":"INDEX(BD253:BP258,BB230,5)","v":0},"Auswahl / Einheit"]
[null,null,null,null,null,null,null,null,null,null,null,null,null,null,null,null,null,null,null,null,null,null,null,null,null,null,null,null,null,null,null,null,null,null,null,null,null,null,null,null,null,null,null,null,null,null,null,null,null,null,null,null,null,{"$f":"INDEX(BD253:BP258,BB230,7)","v":0},"Auswahl / Gebindegröße 1"]
[null,null,null,null,null,null,null,null,null,null,null,null,null,null,null,null,null,null,null,null,null,null,null,null,null,null,null,null,null,null,null,null,null,null,null,null,null,null,null,null,null,null,null,null,null,null,null,null,null,null,null,null,null,{"$f":"INDEX(BD253:BP258,BB230,8)","v":0},"Auswahl / Gebindegröße 2"]
[null,null,null,null,null,null,null,null,null,null,null,null,null,null,null,null,null,null,null,null,null,null,null,null,null,null,null,null,null,null,null,null,null,null,null,null,null,null,null,null,null,null,null,null,null,null,null,null,null,null,null,null,null,{"$f":"INDEX(BD253:BP258,BB230,9)","v":0},"Auswahl / Gebinde 1"]
[null,null,null,null,null,null,null,null,null,null,null,null,null,null,null,null,null,null,null,null,null,null,null,null,null,null,null,null,null,null,null,null,null,null,null,null,null,null,null,null,null,null,null,null,null,null,null,null,null,null,null,null,null,{"$f":"INDEX(BD253:BP258,BB230,10)","v":0},"Auswahl / Gebinde 2"]
[null,null,null,null,null,null,null,null,null,null,null,null,null,null,null,null,null,null,null,null,null,null,null,null,null,null,null,null,null,null,null,null,null,null,null,null,null,null,null,null,null,null,null,null,null,null,null,null,null,null,null,null,{"$f":"INDEX(BD253:CH258,BB230,30)","v":"keine"},{"$f":"INDEX(BD253:BP258,BB230,12)","v":"keine"},"Auswahl / Gebinde-Bezeichnung 1"]
[null,null,null,null,null,null,null,null,null,null,null,null,null,null,null,null,null,null,null,null,null,null,null,null,null,null,null,null,null,null,null,null,null,null,null,null,null,null,null,null,null,null,null,null,null,null,null,null,null,null,null,null,{"$f":"INDEX(BD253:CH258,BB230,31)","v":"    "},{"$f":"INDEX(BD253:BP258,BB230,13)","v":"    "},"Auswahl / Gebinde-Bezeichnung 2"]
[null,null,null,null,null,null,null,null,null,null,null,null,null,null,null,null,null,null,null,null,null,null,null,null,null,null,null,null,null,null,null,null,null,null,null,null,null,null,null,null,null,null,null,null,null,null,null,null,null,null,null,null,null,{"$f":"INDEX(BD253:BQ258,BB230,14)","v":0},"Auswahl / Gebinde-Bezeichnung 2",null,{"$f":"IF(BB240=0,\"\",BB240)","v":""}]
[null,null,null,null,null,null,null,null,null,null,null,null,null,null,null,null,null,null,null,null,null,null,null,null,null,null,null,null,null,null,null,null,null,null,null,null,null,null,null,null,null,null,null,null,null,null,null,null,null,null,null,null,null,{"$f":"INDEX(BD253:BQ258,BB230,11)","v":0},"Auswahl / Bemerkung 2",null,{"$f":"IF(BB241=0,\"\",BB241)","v":""},null,null,null,null,{"$f":"BB244","v":0}]
[null,null,null,null,null,null,null,null,null,null,null,null,null,null,null,null,null,null,null,null,null,null,null,null,null,null,null,null,null,null,null,null,null,null,null,null,null,null,null,null,null,null,null,null,null,null,null,null,null,null,null,null,null,{"$f":"INDEX(BD253:BQ258,BB230,6)","v":0},"Auswahl / Bemerkung 1",null,{"$f":"IF(BB242=0,\"\",BB242)","v":""},null,null,null,null,{"$f":"BB245","v":0}]
[null,null,null,null,null,null,null,null,null,null,null,null,null,null,null,null,null,null,null,null,null,null,null,null,null,null,null,null,null,null,null,null,null,null,null,null,null,null,null,null,null,null,null,null,null,null,null,null,null,null,null,null,null,{"$f":"INDEX(BD253:BR258,BB230,15)","v":0},"Auswahl / Zeichen",null,{"$f":"IF(BB243=0,\"\",BB243)","v":""}]
[null,null,null,null,null,null,null,null,null,null,null,null,null,null,null,null,null,null,null,null,null,null,null,null,null,null,null,null,null,null,null,null,null,null,null,null,null,null,null,null,null,null,null,null,null,null,null,null,null,null,null,null,null,{"$f":"INDEX(BD253:BS258,BB230,16)","v":0},"Auswahl / Zeichen (Nummer)"]
[null,null,null,null,null,null,null,null,null,null,null,null,null,null,null,null,null,null,null,null,null,null,null,null,null,null,null,null,null,null,null,null,null,null,null,null,null,null,null,null,null,null,null,null,null,null,null,null,null,null,null,null,null,{"$f":"INDEX(BD253:BT258,BB230,17)","v":0},"Auswahl / Zeichen (Nummer)"]
[null,null,null,null,null,null,null,null,null,null,null,null,null,null,null,null,null,null,null,null,null,null,null,null,null,null,null,null,null,null,null,null,null,null,null,null,null,null,null,null,null,null,null,null,null,null,null,null,{"$f":"INDEX(BD253:CN258,BB230,32)","v":"keine"},null,null,null,{"$f":"INDEX(BD253:CF258,BB230,24)","v":"keine"},{"$f":"INDEX(BD253:BZ258,BB230,18)","v":"keine"},"Farbe 1"]
[null,null,null,null,null,null,null,null,null,null,null,null,null,null,null,null,null,null,null,null,null,null,null,null,null,null,null,null,null,null,null,null,null,null,null,null,null,null,null,null,null,null,null,null,null,null,null,null,{"$f":"INDEX(BD253:CN258,BB230,33)","v":0},null,null,null,{"$f":"INDEX(BD253:CF258,BB230,25)","v":0},{"$f":"INDEX(BD253:BZ258,BB230,19)","v":0},"Farbe 2"]
[null,null,null,null,null,null,null,null,null,null,null,null,null,null,null,null,null,null,null,null,null,null,null,null,null,null,null,null,null,null,null,null,null,null,null,null,null,null,null,null,null,null,null,null,null,null,null,null,{"$f":"INDEX(BD253:CN258,BB230,34)","v":0},null,null,null,{"$f":"INDEX(BD253:CF258,BB230,26)","v":0},{"$f":"INDEX(BD253:BZ258,BB230,20)","v":0},"Farbe 3"]
[null,null,null,null,null,null,null,null,null,null,null,null,null,null,null,null,null,null,null,null,null,null,null,null,null,null,null,null,null,null,null,null,null,null,null,null,null,null,null,null,null,null,null,null,null,null,null,null,{"$f":"INDEX(BD253:CN258,BB230,35)","v":0},null,null,null,{"$f":"INDEX(BD253:CN258,BB230,27)","v":0},{"$f":"INDEX(BD253:BZ258,BB230,21)","v":0},"Farbe 4"]
[null,null,null,null,null,null,null,null,null,null,null,null,null,null,null,null,null,null,null,null,null,null,null,null,null,null,null,null,null,null,null,null,null,null,null,null,null,null,null,null,null,null,null,null,null,null,null,null,{"$f":"INDEX(BD253:CN258,BB230,36)","v":0},null,null,null,{"$f":"INDEX(BD253:CF258,BB230,28)","v":0},{"$f":"INDEX(BD253:BZ258,BB230,22)","v":0},"Farbe 5"]
[null,null,null,null,null,null,null,null,null,null,null,null,null,null,null,null,null,null,null,null,null,null,null,null,null,null,null,null,null,null,null,null,null,null,null,null,null,null,null,null,null,null,null,null,null,null,null,null,{"$f":"INDEX(BD253:CN258,BB230,37)","v":0},null,null,null,{"$f":"INDEX(BD253:CF258,BB230,29)","v":0},{"$f":"INDEX(BD253:BZ258,BB230,23)","v":0},"Farbe 6"]
[null,null,null,null,null,null,null,null,null,null,null,null,null,null,null,null,null,null,null,null,null,null,null,null,null,null,null,null,null,null,null,null,null,null,null,null,null,null,null,null,null,null,null,null,null,null,null,null,null,null,null,null,"Zwischenrechnung",null,"INDEX","Produkt","kg Liter","Liter Wasser","Produkt","Einheit",null,"Gebinde",null,null,null,"Bemerkung","Gebinde-Bezeichnung",null,"Bemerkung (Auswahlfeld - Gebindegröße)","Zeichen","Zeichen (Nummerisch)","Zeichen (Nummerisch)","Farben",null,null,null,null,null,"Farben-Code",null,null,null,null,null,"Gebinde-Code",null,"Farben-Code / Bild"]
[null,null,null,null,null,null,null,null,null,null,null,null,null,null,null,null,null,null,null,null,null,null,null,null,null,null,null,null,null,null,null,null,null,null,null,null,null,null,null,null,null,null,null,null,null,null,null,null,null,null,null,null,"Plattenbreite",{"$f":"F30/10","v":0},1,"keiner",0,null,null,null,null,null,null,null,null,null,"keine","    ",null,null,null,null,"keine",null,null,null,null,null,"keine",null,null,null,null,null,"keine","    ","keine"]
[null,null,null,null,null,null,null,null,null,null,null,null,null,null,null,null,null,null,null,null,null,null,null,null,null,null,null,null,null,null,null,null,null,null,null,null,null,null,null,null,null,null,null,null,null,null,null,null,null,null,null,null,"Plattenlänge",{"$f":"F31/10","v":0},2,"gräfix 3300 Fliesen- und Natursteinflexfuge, schmal,   bis 6 mm",1.5,7,"gräfix 33","kg",null,5,25,"Eimer","Sack",{"$f":"IF(F33>6,\"max. 6 mm Fugenbreite\",\"\")","v":""},"5 kg Eimer","25 kg Sack"," für gräfix 3300 - Fliesen- und Natursteinflexfuge, schmal",{"$f":"IF(BJ241+BJ242>1,\" / \",\"\")","v":""},{"$f":"IF(F33>6,1,0)","v":0},null,"naturgrau","grau","anthrazit","beige","jura","silbergrau",0,1,2,3,5,6,10,"00",1,2,3,4,5,6]
[null,null,null,null,null,null,null,null,null,null,null,null,null,null,null,null,null,null,null,null,null,null,null,null,null,null,null,null,null,null,null,null,null,null,null,null,null,null,null,null,null,null,null,null,null,null,null,null,null,null,null,null,"Gesamtfläche",{"$f":"F5*10","v":0},3,"gräfix 3301 Fliesen- und Natursteinflexfuge, breit,   2 bis 12 mm",1.5,7,"gräfix 33","kg",null,5,25,"Eimer","Sack",{"$f":"IF(F33<2,\"mind. 2 mm Fugenbreite\",IF(F33>12,\"max. 12 mm Fugenbreite\",\" \"))","v":"mind. 2 mm Fugenbreite"},"5 kg Eimer","25 kg Sack"," für gräfix 3301 - Fliesen- und Natursteinflexfuge, breit",{"$f":"IF(BJ241+BJ242>1,\" / \",\"\")","v":""},{"$f":"IF(F33<2,1,IF(F33>12,1,0))","v":1},null,"naturgrau","grau","anthrazit","beige","jura","dunkelgrau",0,1,2,3,5,4,11,"01",1,2,3,4,5,11]
[null,null,null,null,null,null,null,null,null,null,null,null,null,null,null,null,null,null,null,null,null,null,null,null,null,null,null,null,null,null,null,null,null,null,null,null,null,null,null,null,null,null,null,null,null,null,null,null,null,null,null,null,"Raumlänge",10,4,"gräfix 3303 Polygonal- und Pflasterfuge,   5 bis 30 mm",1.5,5,"gräfix 33","kg","mind. 2/3 Steinhöhe (komplette Fugentiefe bei Plattenbelägen)",25,"  ","Sack","  ",{"$f":"IF(F33<5,\"mind. 5 mm Fugenbreite\",IF(F33>30,\"max. 30 mm Fugenbreite\",\" \"))","v":"mind. 5 mm Fugenbreite"},"25 kg Sack","  "," für gräfix 3303 - Polygonal- und Pflasterfuge",{"$f":"IF(BJ241+BJ242>1,\" / \",\"\")","v":""},{"$f":"IF(F33<5,1,IF(F33>30,1,0))","v":1},1,"naturgrau","grau","anthrazit","beige",null,null,0,1,2,3,null,null,"03","  ",1,2,3,4]
[null,null,null,null,null,null,null,null,null,null,null,null,null,null,null,null,null,null,null,null,null,null,null,null,null,null,null,null,null,null,null,null,null,null,null,null,null,null,null,null,null,null,null,null,null,null,null,null,null,null,null,null,"Fugentiefe",{"$f":"F32/100","v":0},5,"gräfix 3401  2K Naturstein-Drainage- und Pflasterfuge",1.7,0,"gräfix 34","kg",{"$f":"IF(F32<30,\"mind. 30 mm Fugentiefe oder Plattenstärke\",\"\")","v":"mind. 30 mm Fugentiefe oder Plattenstärke"},25,"  ","Eimer","  ",{"$f":"IF(F33<5,\"mind. 5 mm Fugenbreite\",\"\")","v":"mind. 5 mm Fugenbreite"},"25 kg Eimer","  "," für gräfix 3401  - 2K Naturstein-Drainage- und Pflasterfuge",{"$f":"IF(BJ241+BJ242>1,\" / \",\"\")","v":""},{"$f":"IF(F33<3,1,0)","v":1},{"$f":"IF(F32<30,1,0)","v":1},"sand","steingrau","grau","anthrazit",null,null,0,1,2,null,null,null,21,"  ",7,8,10,9]
[null,null,null,null,null,null,null,null,null,null,null,null,null,null,null,null,null,null,null,null,null,null,null,null,null,null,null,null,null,null,null,null,null,null,null,null,null,null,null,null,null,null,null,null,null,null,null,null,null,null,null,null,"Fugenbreite",{"$f":"F33/100","v":0},5,"gräfix 3402  1K Naturstein-Drainage- und Pflasterfuge",1.7,0,"gräfix 34","kg",{"$f":"IF(F32<30,\"mind. 30 mm Fugentiefe oder Plattenstärke\",\"\")","v":"mind. 30 mm Fugentiefe oder Plattenstärke"},25,"  ","Eimer","  ",{"$f":"IF(F33<3,\"mind. 3 mm Fugenbreite\",\"\")","v":"mind. 3 mm Fugenbreite"},"25 kg Eimer","  "," für gräfix 3402  - 1K Naturstein-Drainage- und Pflasterfuge",{"$f":"IF(BJ241+BJ242>1,\" / \",\"\")","v":""},{"$f":"IF(F33<83,1,0)","v":1},{"$f":"IF(F32<30,1,0)","v":1},"sand","steingrau","grau","anthrazit",null,null,0,1,2,3,null,null,22,"  ",7,8,10,9]
[]
[null,null,null,null,null,null,null,null,null,null,null,null,null,null,null,null,null,null,null,null,null,null,null,null,null,null,null,null,null,null,null,null,null,null,null,null,null,null,null,null,null,null,null,null,null,null,null,null,null,null,null,null,null,1,"Auswahl / Steuerelement (Gebindegröße der Fugenmörtel)"]
[null,null,null,null,null,null,null,null,null,null,null,null,null,null,null,null,null,null,null,null,null,null,null,null,null,null,null,null,null,null,null,null,null,null,null,null,null,null,null,null,null,null,null,null,null,null,null,null,null,null,null,null,null,{"$f":"INDEX(BD264:BM265,BB260,9)","v":0},"Auswahl / Gebindegröße"]
[null,null,null,null,null,null,null,null,null,null,null,null,null,null,null,null,null,null,null,null,null,null,null,null,null,null,null,null,null,null,null,null,null,null,null,null,null,null,null,null,null,null,null,null,null,null,null,null,null,null,null,null,{"$f":"INDEX(BD264:BM265,BB260,2)","v":"keine"},{"$f":"INDEX(BD264:BM265,BB260,8)","v":0},"Auswahl / Gebindeart"]
[null,null,null,null,null,null,null,null,null,null,null,null,null,null,null,null,null,null,null,null,null,null,null,null,null,null,null,null,null,null,null,null,null,null,null,null,null,null,null,null,null,null,null,null,null,null,null,null,null,null,null,null,null,null,"INDEX","Produkt","Code",null,null,null,null,"Gebinde"]
[null,null,null,null,null,null,null,null,null,null,null,null,null,null,null,null,null,null,null,null,null,null,null,null,null,null,null,null,null,null,null,null,null,null,null,null,null,null,null,null,null,null,null,null,null,null,null,null,null,null,null,null,null,null,1,{"$f":"BB238","v":"keine"},{"$f":"BA238","v":"keine"},null,null,null,null,null,{"$f":"BB234","v":0},{"$f":"BB236","v":0}]
[null,null,null,null,null,null,null,null,null,null,null,null,null,null,null,null,null,null,null,null,null,null,null,null,null,null,null,null,null,null,null,null,null,null,null,null,null,null,null,null,null,null,null,null,null,null,null,null,null,null,null,null,null,null,2,{"$f":"BB239","v":"    "},{"$f":"BA239","v":"    "},null,null,null,null,null,{"$f":"BB235","v":0},{"$f":"BB237","v":0}]
[]
[null,null,null,null,null,null,null,null,null,null,null,null,null,null,null,null,null,null,null,null,null,null,null,null,null,null,null,null,null,null,null,null,null,null,null,null,null,null,null,null,null,null,null,null,null,null,null,null,null,null,null,null,null,1,"Auswahl / INDEX"]
[null,null,null,null,null,null,null,null,null,null,null,null,null,null,null,null,null,null,null,null,null,null,null,null,null,null,null,null,null,null,null,null,null,null,null,null,null,null,null,null,null,null,null,null,null,null,null,null,null,null,null,null,null,{"$f":"INDEX(BD278:BM304,BB267,2)","v":1.5},"Auswahl / Verbrauch (4/8 - to/m³)"]
[null,null,null,null,null,null,null,null,null,null,null,null,null,null,null,null,null,null,null,null,null,null,null,null,null,null,null,null,null,null,null,null,null,null,null,null,null,null,null,null,null,null,null,null,null,null,null,null,null,null,null,null,null,{"$f":"INDEX(BD278:BM304,BB267,3)","v":1.5},"Auswahl / Verbrauch (5/8 - to/m³)"]
[null,null,null,null,null,null,null,null,null,null,null,null,null,null,null,null,null,null,null,null,null,null,null,null,null,null,null,null,null,null,null,null,null,null,null,null,null,null,null,null,null,null,null,null,null,null,null,null,null,null,null,null,null,{"$f":"INDEX(BD278:BM304,BB267,4)","v":0},"Auswahl / Produkt"]
[null,null,null,null,null,null,null,null,null,null,null,null,null,null,null,null,null,null,null,null,null,null,null,null,null,null,null,null,null,null,null,null,null,null,null,null,null,null,null,null,null,null,null,null,null,null,null,null,null,null,null,null,null,{"$f":"INDEX(BD278:BM304,BB267,5)","v":"to"},"Auswahl / Einheit"]
[null,null,null,null,null,null,null,null,null,null,null,null,null,null,null,null,null,null,null,null,null,null,null,null,null,null,null,null,null,null,null,null,null,null,null,null,null,null,null,null,null,null,null,null,null,null,null,null,null,null,null,null,null,{"$f":"INDEX(BD278:BM304,BB267,8)","v":0},"Auswahl / Edelsplitt (Gesteinsart)"]
[null,null,null,null,null,null,null,null,null,null,null,null,null,null,null,null,null,null,null,null,null,null,null,null,null,null,null,null,null,null,null,null,null,null,null,null,null,null,null,null,null,null,null,null,null,null,null,null,null,null,null,null,null,{"$f":"INDEX(BD278:BM304,BB267,1)","v":"Basalt-Edelsplitt"}]
[null,null,null,null,null,null,null,null,null,null,null,null,null,null,null,null,null,null,null,null,null,null,null,null,null,null,null,null,null,null,null,null,null,null,null,null,null,null,null,null,null,null,null,null,null,null,null,null,null,null,null,null,null,{"$f":"INDEX(BD278:BM304,BB267,6)","v":0}]
[null,null,null,null,null,null,null,null,null,null,null,null,null,null,null,null,null,null,null,null,null,null,null,null,null,null,null,null,null,null,null,null,null,null,null,null,null,null,null,null,null,null,null,null,null,null,null,null,null,null,null,null,null,{"$f":"INDEX(BD278:BM304,BB267,10)","v":0}]
[null,null,null,null,null,null,null,null,null,null,null,null,null,null,null,null,null,null,null,null,null,null,null,null,null,null,null,null,null,null,null,null,null,null,null,null,null,null,null,null,null,null,null,null,null,null,null,null,null,null,null,null,null,{"$f":"INDEX(BD278:BN304,BB267,11)","v":0}]
[null,null,null,null,null,null,null,null,null,null,null,null,null,null,null,null,null,null,null,null,null,null,null,null,null,null,null,null,null,null,null,null,null,null,null,null,null,null,null,null,null,null,null,null,null,null,null,null,null,null,null,null,null,null,"INDEX","Produkt","4/8 - to/m³","5/8 - to/m³","Produkt","Einheit","Bemerkung zur Abdichtung",null,"Gebinde",null,"Bemerkung zur Grundierung","Bemerkung zur Grundierung R 190"]
[null,null,null,null,null,null,null,null,null,null,null,null,null,null,null,null,null,null,null,null,null,null,null,null,null,null,null,null,null,null,null,null,null,null,null,null,null,null,null,null,null,null,null,null,null,null,null,null,null,null,null,null,null,null,1,"Basalt-Edelsplitt",1.5,1.5,null,"to"]
[null,null,null,null,null,null,null,null,null,null,null,null,null,null,null,null,null,null,null,null,null,null,null,null,null,null,null,null,null,null,null,null,null,null,null,null,null,null,null,null,null,null,null,null,null,null,null,null,null,null,null,null,null,null,2,"Granit-Edelsplitt",1.5,1.5,null,"to"]
[null,null,null,null,null,null,null,null,null,null,null,null,null,null,null,null,null,null,null,null,null,null,null,null,null,null,null,null,null,null,null,null,null,null,null,null,null,null,null,null,null,null,null,null,null,null,null,null,null,null,null,null,null,null,3,"Kalk-Edelsplitt",1.4,1.4,null,"to"]
[null,null,null,null,null,null,null,null,null,null,null,null,null,null,null,null,null,null,null,null,null,null,null,null,null,null,null,null,null,null,null,null,null,null,null,null,null,null,null,null,null,null,null,null,null,null,null,null,null,null,null,null,null,null,4,"Moräne-Edelsplitt",1.5,1.5,null,"to"]
[null,null,null,null,null,null,null,null,null,null,null,null,null,null,null,null,null,null,null,null,null,null,null,null,null,null,null,null,null,null,null,null,null,null,null,null,null,null,null,null,null,null,null,null,null,null,null,null,null,null,null,null,null,null,5,"Poraver-Blähglasgranulat",0.3,0.3,null,"to"]
[null,null,null,null,null,null,null,null,null,null,null,null,null,null,null,null,null,null,null,null,null,null,null,null,null,null,null,null,null,null,null,null,null,null,null,null,null,null,null,null,null,null,null,null,null,null,null,null,null,null,null,null,null,null,6,null,null,null,null,"to"]
[null,null,null,null,null,null,null,null,null,null,null,null,null,null,null,null,null,null,null,null,null,null,null,null,null,null,null,null,null,null,null,null,null,null,null,null,null,null,null,null,null,null,null,null,null,null,null,null,null,null,null,null,null,null,7,null,null,null,null,"to"]
[null,null,null,null,null,null,null,null,null,null,null,null,null,null,null,null,null,null,null,null,null,null,null,null,null,null,null,null,null,null,null,null,null,null,null,null,null,null,null,null,null,null,null,null,null,null,null,null,null,null,null,null,null,null,8,null,null,null,null,"to"]
[null,null,null,null,null,null,null,null,null,null,null,null,null,null,null,null,null,null,null,null,null,null,null,null,null,null,null,null,null,null,null,null,null,null,null,null,null,null,null,null,null,null,null,null,null,null,null,null,null,null,null,null,null,null,9,null,null,null,null,"to"]
[null,null,null,null,null,null,null,null,null,null,null,null,null,null,null,null,null,null,null,null,null,null,null,null,null,null,null,null,null,null,null,null,null,null,null,null,null,null,null,null,null,null,null,null,null,null,null,null,null,null,null,null,null,null,10,null,null,null,null,"to"]
[null,null,null,null,null,null,null,null,null,null,null,null,null,null,null,null,null,null,null,null,null,null,null,null,null,null,null,null,null,null,null,null,null,null,null,null,null,null,null,null,null,null,null,null,null,null,null,null,null,null,null,null,null,null,11,null,null,null,null,"to"]
[null,null,null,null,null,null,null,null,null,null,null,null,null,null,null,null,null,null,null,null,null,null,null,null,null,null,null,null,null,null,null,null,null,null,null,null,null,null,null,null,null,null,null,null,null,null,null,null,null,null,null,null,null,null,12,null,null,null,null,"to"]
[null,null,null,null,null,null,null,null,null,null,null,null,null,null,null,null,null,null,null,null,null,null,null,null,null,null,null,null,null,null,null,null,null,null,null,null,null,null,null,null,null,null,null,null,null,null,null,null,null,null,null,null,null,null,13,null,null,null,null,"to"]
[null,null,null,null,null,null,null,null,null,null,null,null,null,null,null,null,null,null,null,null,null,null,null,null,null,null,null,null,null,null,null,null,null,null,null,null,null,null,null,null,null,null,null,null,null,null,null,null,null,null,null,null,null,null,14,null,null,null,null,"to"]
[null,null,null,null,null,null,null,null,null,null,null,null,null,null,null,null,null,null,null,null,null,null,null,null,null,null,null,null,null,null,null,null,null,null,null,null,null,null,null,null,null,null,null,null,null,null,null,null,null,null,null,null,null,null,15,null,null,null,null,"to"]
[null,null,null,null,null,null,null,null,null,null,null,null,null,null,null,null,null,null,null,null,null,null,null,null,null,null,null,null,null,null,null,null,null,null,null,null,null,null,null,null,null,null,null,null,null,null,null,null,null,null,null,null,null,null,16,null,null,null,null,"to"]
[null,null,null,null,null,null,null,null,null,null,null,null,null,null,null,null,null,null,null,null,null,null,null,null,null,null,null,null,null,null,null,null,null,null,null,null,null,null,null,null,null,null,null,null,null,null,null,null,null,null,null,null,null,null,17,null,null,null,null,"to"]
[null,null,null,null,null,null,null,null,null,null,null,null,null,null,null,null,null,null,null,null,null,null,null,null,null,null,null,null,null,null,null,null,null,null,null,null,null,null,null,null,null,null,null,null,null,null,null,null,null,null,null,null,null,null,18,null,null,null,null,"to"]
[null,null,null,null,null,null,null,null,null,null,null,null,null,null,null,null,null,null,null,null,null,null,null,null,null,null,null,null,null,null,null,null,null,null,null,null,null,null,null,null,null,null,null,null,null,null,null,null,null,null,null,null,null,null,19,null,null,null,null,"to"]
[null,null,null,null,null,null,null,null,null,null,null,null,null,null,null,null,null,null,null,null,null,null,null,null,null,null,null,null,null,null,null,null,null,null,null,null,null,null,null,null,null,null,null,null,null,null,null,null,null,null,null,null,null,null,20,null,null,null,null,"to"]
[null,null,null,null,null,null,null,null,null,null,null,null,null,null,null,null,null,null,null,null,null,null,null,null,null,null,null,null,null,null,null,null,null,null,null,null,null,null,null,null,null,null,null,null,null,null,null,null,null,null,null,null,null,null,21,null,null,null,null,"to"]
[null,null,null,null,null,null,null,null,null,null,null,null,null,null,null,null,null,null,null,null,null,null,null,null,null,null,null,null,null,null,null,null,null,null,null,null,null,null,null,null,null,null,null,null,null,null,null,null,null,null,null,null,null,null,22,null,null,null,null,"to"]
[null,null,null,null,null,null,null,null,null,null,null,null,null,null,null,null,null,null,null,null,null,null,null,null,null,null,null,null,null,null,null,null,null,null,null,null,null,null,null,null,null,null,null,null,null,null,null,null,null,null,null,null,null,null,23,null,null,null,null,"to"]
[null,null,null,null,null,null,null,null,null,null,null,null,null,null,null,null,null,null,null,null,null,null,null,null,null,null,null,null,null,null,null,null,null,null,null,null,null,null,null,null,null,null,null,null,null,null,null,null,null,null,null,null,null,null,24,null,null,null,null,"to"]
[null,null,null,null,null,null,null,null,null,null,null,null,null,null,null,null,null,null,null,null,null,null,null,null,null,null,null,null,null,null,null,null,null,null,null,null,null,null,null,null,null,null,null,null,null,null,null,null,null,null,null,null,null,null,25,null,null,null,null,"to"]
[null,null,null,null,null,null,null,null,null,null,null,null,null,null,null,null,null,null,null,null,null,null,null,null,null,null,null,null,null,null,null,null,null,null,null,null,null,null,null,null,null,null,null,null,null,null,null,null,null,null,null,null,null,null,26,null,null,null,null,"to"]
[null,null,null,null,null,null,null,null,null,null,null,null,null,null,null,null,null,null,null,null,null,null,null,null,null,null,null,null,null,null,null,null,null,null,null,null,null,null,null,null,null,null,null,null,null,null,null,null,null,null,null,null,null,null,27,null,null,null,null,"to"]
[]
[null,null,null,null,null,null,null,null,null,null,null,null,null,null,null,null,null,null,null,null,null,null,null,null,null,null,null,null,null,null,null,null,null,null,null,null,null,null,null,null,null,null,null,null,null,null,null,null,null,null,null,null,null,1,"Auswahl / Steuerelement"]
[null,null,null,null,null,null,null,null,null,null,null,null,null,null,null,null,null,null,null,null,null,null,null,null,null,null,null,null,null,null,null,null,null,null,null,null,null,null,null,null,null,null,null,null,null,null,null,null,null,null,null,null,null,{"$f":"INDEX(BD308:BL313,BB306,4)","v":1.5},"Auswahl / Zahnkelle",null,null,null,"to/m³","Einheit","Bemerkung zur Abdichtung"]
[null,null,null,null,null,null,null,null,null,null,null,null,null,null,null,null,null,null,null,null,null,null,null,null,null,null,null,null,null,null,null,null,null,null,null,null,null,null,null,null,null,null,null,null,null,null,null,null,null,null,null,null,null,null,1,"Körnung 4 / 8",null,null,{"$f":"BB268","v":1.5},"to/m³"]
[null,null,null,null,null,null,null,null,null,null,null,null,null,null,null,null,null,null,null,null,null,null,null,null,null,null,null,null,null,null,null,null,null,null,null,null,null,null,null,null,null,null,null,null,null,null,null,null,null,null,null,null,null,null,2,"Körnung 5 / 8",null,null,{"$f":"BB269","v":1.5},"to/m³"]
[null,null,null,null,null,null,null,null,null,null,null,null,null,null,null,null,null,null,null,null,null,null,null,null,null,null,null,null,null,null,null,null,null,null,null,null,null,null,null,null,null,null,null,null,null,null,null,null,null,null,null,null,null,null,3]
[null,null,null,null,null,null,null,null,null,null,null,null,null,null,null,null,null,null,null,null,null,null,null,null,null,null,null,null,null,null,null,null,null,null,null,null,null,null,null,null,null,null,null,null,null,null,null,null,null,null,null,null,null,null,4]
[null,null,null,null,null,null,null,null,null,null,null,null,null,null,null,null,null,null,null,null,null,null,null,null,null,null,null,null,null,null,null,null,null,null,null,null,null,null,null,null,null,null,null,null,null,null,null,null,null,null,null,null,null,1,5]
[null,null,null,null,null,null,null,null,null,null,null,null,null,null,null,null,null,null,null,null,null,null,null,null,null,null,null,null,null,null,null,null,null,null,null,null,null,null,null,null,null,null,null,null,null,null,null,null,null,null,null,null,null,null,6]
[]
[null,null,null,null,null,null,null,null,null,null,null,null,null,null,null,null,null,null,null,null,null,null,null,null,null,null,null,null,null,null,null,null,null,null,null,null,null,null,null,null,null,null,null,null,null,null,null,null,null,null,null,null,null,1,"Auswahl / INDEX"]
[null,null,null,null,null,null,null,null,null,null,null,null,null,null,null,null,null,null,null,null,null,null,null,null,null,null,null,null,null,null,null,null,null,null,null,null,null,null,null,null,null,null,null,null,null,null,null,null,null,null,null,null,null,{"$f":"INDEX(BD326:BM332,BB315,1)","v":"keine"},"Auswahl / Farbe"]
[null,null,null,null,null,null,null,null,null,null,null,null,null,null,null,null,null,null,null,null,null,null,null,null,null,null,null,null,null,null,null,null,null,null,null,null,null,null,null,null,null,null,null,null,null,null,null,null,null,null,null,null,null,{"$f":"INDEX(BD326:BM332,BB315,2)","v":"keine"}]
[null,null,null,null,null,null,null,null,null,null,null,null,null,null,null,null,null,null,null,null,null,null,null,null,null,null,null,null,null,null,null,null,null,null,null,null,null,null,null,null,null,null,null,null,null,null,null,null,null,null,null,null,null,{"$f":"INDEX(BD326:BM332,BB315,3)","v":"keine"}]
[]
[]
[]
[]
[]
[]
[null,null,null,null,null,null,null,null,null,null,null,null,null,null,null,null,null,null,null,null,null,null,null,null,null,null,null,null,null,null,null,null,null,null,null,null,null,null,null,null,null,null,null,null,null,null,null,null,null,null,null,null,null,null,"INDEX","Produkt","Farb-Code","Farb-Code / Bild"]
[null,null,null,null,null,null,null,null,null,null,null,null,null,null,null,null,null,null,null,null,null,null,null,null,null,null,null,null,null,null,null,null,null,null,null,null,null,null,null,null,null,null,null,null,null,null,null,null,null,null,null,null,null,null,1,{"$f":"IF(BB246=0,\"\",BB246)","v":"keine"},{"$f":"BA246","v":"keine"},{"$f":"AW246","v":"keine"}]
[null,null,null,null,null,null,null,null,null,null,null,null,null,null,null,null,null,null,null,null,null,null,null,null,null,null,null,null,null,null,null,null,null,null,null,null,null,null,null,null,null,null,null,null,null,null,null,null,null,null,null,null,null,null,2,{"$f":"IF(BB247=0,\"\",BB247)","v":""},0,0]
[null,null,null,null,null,null,null,null,null,null,null,null,null,null,null,null,null,null,null,null,null,null,null,null,null,null,null,null,null,null,null,null,null,null,null,null,null,null,null,null,null,null,null,null,null,null,null,null,null,null,null,null,null,null,3,"",0,0]
[null,null,null,null,null,null,null,null,null,null,null,null,null,null,null,null,null,null,null,null,null,null,null,null,null,null,null,null,null,null,null,null,null,null,null,null,null,null,null,null,null,null,null,null,null,null,null,null,null,null,null,null,null,null,4,"",0,0]
[null,null,null,null,null,null,null,null,null,null,null,null,null,null,null,null,null,null,null,null,null,null,null,null,null,null,null,null,null,null,null,null,null,null,null,null,null,null,null,null,null,null,null,null,null,null,null,null,null,null,null,null,null,null,5,"",0,0]
[null,null,null,null,null,null,null,null,null,null,null,null,null,null,null,null,null,null,null,null,null,null,null,null,null,null,null,null,null,null,null,null,null,null,null,null,null,null,null,null,null,null,null,null,null,null,null,null,null,null,null,null,null,null,6,"",0,0]
[null,null,null,null,null,null,null,null,null,null,null,null,null,null,null,null,null,null,null,null,null,null,null,null,null,null,null,null,null,null,null,null,null,null,null,null,null,null,null,null,null,null,null,null,null,null,null,null,null,null,null,null,null,null,7,""]
[]
[null,null,null,null,null,null,null,null,null,null,null,null,null,null,null,null,null,null,null,null,null,null,null,null,null,null,null,null,null,null,null,null,null,null,null,null,null,null,null,null,null,null,null,null,null,null,null,null,null,null,null,null,null,null,"Auswahl / CeckBox (Naturstein / Feinsteinzeug)"]
[null,null,null,null,null,null,null,null,null,null,null,null,null,null,null,null,null,null,null,null,null,null,null,null,null,null,null,null,null,null,null,null,null,null,null,null,null,null,null,null,null,null,null,null,null,null,null,null,null,null,null,null,null,null,1,"gräfix 3423 fein LithoRapid Mittelbettkleber, schnell, weiß  5 bis 15 mm",0,{"$f":"BB218","v":5},"gräfix 3423 fein","kg",null,null,25,"Sack"]
[null,null,null,null,null,null,null,null,null,null,null,null,null,null,null,null,null,null,null,null,null,null,null,null,null,null,null,null,null,null,null,null,null,null,null,null,null,null,null,null,null,null,null,null,null,null,null,null,null,null,null,null,null,null,2,"  ",null,null,"  "]
[]
[]
[]
[]
[]
[]
[]
[]
[null,null,null,null,null,null,null,null,null,null,null,null,null,null,null,null,null,null,null,null,null,null,null,null,null,null,null,null,null,null,null,null,null,null,null,null,null,null,null,null,null,null,null,null,null,null,null,null,null,null,null,null,null,{"$f":"IF(BE345=TRUE,\"1\",\"2\")","v":"2"},"Auswahl / Steuerelement (Dichtband)",null,{"$f":"BB24","v":false},{"$f":"BB185/BB182","v":{"$error":"#DIV/0!"}},"Liter/kg    Mörtel",{"$f":"W54*1000","v":{"$error":"#DIV/0!"}},"Bedarf - Rabolin 126",{"$f":"IF(BE345=TRUE,BH345*BF345/100*15,\"\")","v":""},"kg"]
[null,null,null,null,null,null,null,null,null,null,null,null,null,null,null,null,null,null,null,null,null,null,null,null,null,null,null,null,null,null,null,null,null,null,null,null,null,null,null,null,null,null,null,null,null,null,null,null,null,null,null,null,null,{"$f":"INDEX(BD352:BP353,BB345,3)","v":0},"Auswahl / Verbrauch pro m"]
[null,null,null,null,null,null,null,null,null,null,null,null,null,null,null,null,null,null,null,null,null,null,null,null,null,null,null,null,null,null,null,null,null,null,null,null,null,null,null,null,null,null,null,null,null,null,null,null,null,null,null,null,null,{"$f":"INDEX(BD352:BP353,BB345,4)","v":0},"Auswahl / Produkt"]
[null,null,null,null,null,null,null,null,null,null,null,null,null,null,null,null,null,null,null,null,null,null,null,null,null,null,null,null,null,null,null,null,null,null,null,null,null,null,null,null,null,null,null,null,null,null,null,null,null,null,null,null,null,{"$f":"INDEX(BD352:BP353,BB345,5)","v":0},"Auswahl / Einheit"]
[null,null,null,null,null,null,null,null,null,null,null,null,null,null,null,null,null,null,null,null,null,null,null,null,null,null,null,null,null,null,null,null,null,null,null,null,null,null,null,null,null,null,null,null,null,null,null,null,null,null,null,null,null,{"$f":"INDEX(BD352:BP353,BB345,7)","v":0},"Auswahl / Gebindegröße"]
[null,null,null,null,null,null,null,null,null,null,null,null,null,null,null,null,null,null,null,null,null,null,null,null,null,null,null,null,null,null,null,null,null,null,null,null,null,null,null,null,null,null,null,null,null,null,null,null,null,null,null,null,null,{"$f":"INDEX(BD352:BP353,BB345,9)","v":0},"Auswahl / Gebindeart"]
[null,null,null,null,null,null,null,null,null,null,null,null,null,null,null,null,null,null,null,null,null,null,null,null,null,null,null,null,null,null,null,null,null,null,null,null,null,null,null,null,null,null,null,null,null,null,null,null,null,null,null,null,null,null,"INDEX","Produkt",null,"kg","Produkt","Einheit","Bemerkung","Gebinde",null,null,"Bemerkung",null,"Gebinde-Bezeichnung"]
[null,null,null,null,null,null,null,null,null,null,null,null,null,null,null,null,null,null,null,null,null,null,null,null,null,null,null,null,null,null,null,null,null,null,null,null,null,null,null,null,null,null,null,null,null,null,null,null,null,null,null,null,null,null,1,"Haftemulsion-Konzentrat",null,1,"Rabolin 12610","kg",null,"10",null,"Kanister",null,"  ","keine","    "]
[null,null,null,null,null,null,null,null,null,null,null,null,null,null,null,null,null,null,null,null,null,null,null,null,null,null,null,null,null,null,null,null,null,null,null,null,null,null,null,null,null,null,null,null,null,null,null,null,null,null,null,null,null,null,2]
[null,null,null,null,null,null,null,null,null,null,null,null,null,null,null,null,null,null,null,null,null,null,null,null,null,null,null,null,null,null,null,null,null,null,null,null,null,null,null,null,null,null,null,null,null,null,null,null,null,null,null,null,null,{"$f":"IF(BB345+BB355<4,BG352,\"\")","v":""},null,null,null,null,null,null,"Gesamtbedarf - Rabolin 126",{"$f":"SUM(BJ345,BJ355)","v":0},"kg"]
[null,null,null,null,null,null,null,null,null,null,null,null,null,null,null,null,null,null,null,null,null,null,null,null,null,null,null,null,null,null,null,null,null,null,null,null,null,null,null,null,null,null,null,null,null,null,null,null,null,null,null,null,null,{"$f":"IF(BE355=TRUE,\"1\",\"2\")","v":"2"},"Auswahl / Steuerelement (Dichtband)",null,{"$f":"BB30","v":false},{"$f":"BE231/25","v":0},"Liter/kg    Mörtel",{"$f":"W57","v":{"$error":"#DIV/0!"}},"Bedarf - Rabolin 126",{"$f":"IF(BE355=TRUE,BH355*BF355/100*15,\"\")","v":""},"kg"]
[null,null,null,null,null,null,null,null,null,null,null,null,null,null,null,null,null,null,null,null,null,null,null,null,null,null,null,null,null,null,null,null,null,null,null,null,null,null,null,null,null,null,null,null,null,null,null,null,null,null,null,null,null,{"$f":"INDEX(BD362:BP363,BB355,3)","v":0},"Auswahl / Verbrauch pro m"]
[null,null,null,null,null,null,null,null,null,null,null,null,null,null,null,null,null,null,null,null,null,null,null,null,null,null,null,null,null,null,null,null,null,null,null,null,null,null,null,null,null,null,null,null,null,null,null,null,null,null,null,null,null,{"$f":"INDEX(BD362:BP363,BB355,4)","v":0},"Auswahl / Produkt"]
[null,null,null,null,null,null,null,null,null,null,null,null,null,null,null,null,null,null,null,null,null,null,null,null,null,null,null,null,null,null,null,null,null,null,null,null,null,null,null,null,null,null,null,null,null,null,null,null,null,null,null,null,null,{"$f":"INDEX(BD362:BP363,BB355,5)","v":0},"Auswahl / Einheit"]
[null,null,null,null,null,null,null,null,null,null,null,null,null,null,null,null,null,null,null,null,null,null,null,null,null,null,null,null,null,null,null,null,null,null,null,null,null,null,null,null,null,null,null,null,null,null,null,null,null,null,null,null,null,{"$f":"INDEX(BD362:BP363,BB355,7)","v":0},"Auswahl / Gebindegröße"]
[null,null,null,null,null,null,null,null,null,null,null,null,null,null,null,null,null,null,null,null,null,null,null,null,null,null,null,null,null,null,null,null,null,null,null,null,null,null,null,null,null,null,null,null,null,null,null,null,null,null,null,null,null,{"$f":"INDEX(BD362:BP363,BB355,9)","v":0},"Auswahl / Gebindeart"]
[null,null,null,null,null,null,null,null,null,null,null,null,null,null,null,null,null,null,null,null,null,null,null,null,null,null,null,null,null,null,null,null,null,null,null,null,null,null,null,null,null,null,null,null,null,null,null,null,null,null,null,null,null,null,"INDEX","Produkt",null,"kg","Produkt","Einheit","Bemerkung","Gebinde",null,null,"Bemerkung",null,"Gebinde-Bezeichnung"]
[null,null,null,null,null,null,null,null,null,null,null,null,null,null,null,null,null,null,null,null,null,null,null,null,null,null,null,null,null,null,null,null,null,null,null,null,null,null,null,null,null,null,null,null,null,null,null,null,null,null,null,null,null,null,1,"Haftemulsion-Konzentrat",null,1,"Rabolin 12610","kg",null,"10",null,"Kanister",null,"  ","keine","    "]
[null,null,null,null,null,null,null,null,null,null,null,null,null,null,null,null,null,null,null,null,null,null,null,null,null,null,null,null,null,null,null,null,null,null,null,null,null,null,null,null,null,null,null,null,null,null,null,null,null,null,null,null,null,null,2]

{"sheet":"Release","index":3,"n_rows":51,"n_cols":3,"rows_kept":51,"cut":false,"hidden":true,"merged":[]}
["Datum","Version","Änderungen"]
["2023.08.01","v3063","Druckbereich unter \"Verbrauchsrechner-Monodrän\" angepasst"]
["2022.04.11","v3062","Gebindegröße von gräfix 351 unter \"Verbrauchsrechner-Mörtel\" von 25 kg auf 20 kg angepasst"]
[null,null,"Gebindegröße von gräfix 351 unter \"Verbrauchsrechner-Monodrän\" von 25 kg auf 20 kg angepasst"]
[null,null,"Gebindegröße von gräfix 3401 unter \"Verbrauchsrechner-Mörtel\" von 10 kg auf 25 kg angepasst"]
[null,null,"mind. Fugenbreite von gräfix 3401 unter \"Verbrauchsrechner-Mörtel\" von 3 mm auf 5 mm angepasst"]
[null,null,"Fugenfarben von gräfix 3401 unter \"Verbrauchsrechner-Mörtel\" angepasst"]
[null,null,"Gebindegröße von gräfix 3401 unter \"Verbrauchsrechner-Monodrän\" von 10 kg auf 25 kg angepasst"]
[null,null,"mind. Fugenbreite von gräfix 3401 unter \"Verbrauchsrechner-Monodrän\" von 3 mm auf 5 mm angepasst"]
[null,null,"Fugenfarben von gräfix 3401 unter \"Verbrauchsrechner-Monodrän\" angepasst"]
["2021.10.15","v3061","Fehler bei Anzeige von \"Bemerkung Fugentiefe\" unter \"Verbrauchsrechner-Mörtel\" behoben"]
[null,null,"Bemerkung \"Fugentiefe\" von gräfix 3402 von \"8 mm\" auf \"3 mm\" \"Verbrauchsrechner-Mörtel\" angepasst"]
[null,null,"Bemerkung \"Fugentiefe\" von gräfix 3402 von \"8 mm\" auf \"3 mm\" \"Verbrauchsrechner-Monodrän\" angepasst"]
[]
["2020.06.03","v3060","Blatt-Schutz bei allen Tabellen-Blättern angepasst"]
[null,null,"Berechnungen von \"Verbrauchsrechner-Mörtel\" auf  \"Hintergrund-Mörtel\" ausgelagert"]
[null,null,"Fehler bei Anzeige von \"Bemerkung zur Grundierung R 190\" unter \"Verbrauchsrechner-Mörtel\" behoben"]
[null,null,"Verschiene Ausgabe-Fehler behoben"]
["2020.05.25","v2059","Fehler bei Berechnung der Fugenmasse unter \"Verbrauchsrechner-Mörtel\" behoben (Makro-Fehler)"]
[null,null,"Fehler bei Anzeige von gräfix 418 unter \"Verbrauchsrechner-Monodrän\" behoben"]
["2020.05.22","v2058","Fehler bei Anzeige der Abdichtungsprodukte behoben"]
[null,null,"Gebindegrößen der Abdichtungsprodukte unter \"Verbrauchsrechner-Mörtel\" hinzugefügt"]
["2020.04.07","v2057","Fehler bei Gebindegrößen von gräfix 450, gräfix 439 und gräfix 55 unter \"Verbrauchsrechner-Mörtel\" behoben"]
["2020.04.07","v2056","gräfix 3423SL und gräfix 4323 unter \"Verbrauchsrechner-Mörtel\" entfernt"]
[null,null,"gräfix 3410CR und gräfix 3210CR unter \"Verbrauchsrechner-Mörtel\" hinzugefügt"]
[null,null,"\"Gebinde 2\" bei \"Kleber/Mörtel\" unter \"Verbrauchsrechner-Mörtel\" hinzugefügt"]
["2020.01.16","v2055","Fehler bei Gebinde-Berechnung der Fugenmassen bei \"Verbrauchsrechner-Mörtel\" behoben"]
["2019.10.09","v2054","Schüttgewicht der Splitte nochmal nach Unten angepasst"]
["2019.10.02","v2053","Schüttgewicht der Splitte angepasst"]
["2017.03.30","v2052","Fehler bei der Eingabe der Abdichtungsprodukte behoben"]
["2017.05.19","v2051","Farbton \"dunkelgrau\" für gräfix 3301 hinzugefügt"]
[null,null,"Farbtöne (naturgrau, grau, anthrazit, beige und jura) optisch angepasst"]
[null,null,"Fehler bei der Ausgabe von Rabolin 126 bei \"Verbrauchsrechner-Monodrän\" behoben"]
["2015.10.23","v2050","Fehler bei Fugen-Verbrauch bei \"Verbrauchsrechner-Monodrän\" behoben"]
[null,null,"Rabolin 126 bei \"Verbrauchsrechner-Monodrän\" hinzugefügt"]
["2014.05.02","v1049","kleinere Fehler behoben"]
[null,null,"Auswahl \"Naturstein / Feinsteinzeug\" bei \"Verbrauchsrechner-Monodrän\" hinzugefügt --> nur C2 Kleber"]
["2014.02.11","v1048","gräfix 34 S hinzugefügt"]
["2013.06.07","v1047","Fehler bei der Ausgabe des Ergebnis der Fugenmörtel behoben"]
["2013.05.16","v1046","gräfix 3402 hinzugefügt"]
["2013.03.05","v1045","Fehler bei der Gebindegröße von gräfix 419 behoben"]
["2012.11.05","v1044","Fehler bei \"Zahnkelle\" nach Auswahl gräfix 56 grob bei \"Kleber/Mörtel\" behoben"]
[null,null,"Bedingungen für Auswahl der Auftragsstärke bei \"Mittel- und Dickbettmörtel\" hinzugefügt"]
["2012.10.22","v1043","Fehler bei Gebindearten der Grundierungen behoben"]
["2012.10.08","v1042","Rechtschreibung \"Außenbereich\" bei Abdichtung korrigiert (Mörtel/Kleber und Monodrän Rechner)"]
[null,null,"Hinweis zur Auswahl der Mittel- und Dickbettstärke und der Auswahl der Zahnkelle mit WENN-UND-Funktion hinzugefügt"]
["2012.09.30","v1041","Release Informationen zur Datei hinzugefügt"]
[null,null,"Hinweis \"Abdichtung auf Untergrund erforderlich\" mit WENN-UND-Funktion bei Steuerelement \"Mögliche Untergründe\" hinzugefügt"]
["2012.09.26","v1040","2 neue Untergründe eingefügt (Hohlboden auf Calciumsulfat- und Zementbasis)"]
[null,null,"Fehler beim Löschen und Zurücksetzen der Steuerelemente behoben (Gebindegröße / Abdichtung und Farbcode)"]
["2012.09.24","v1039","Fehler bei der Menge (to) des Edelsplitt behoben"]

{"sheet":"Hintergrund-Mörtel","index":4,"n_rows":312,"n_cols":41,"rows_kept":312,"cut":false,"hidden":true,"merged":[[231,1,231,2],[17,15,17,16],[17,10,17,12],[37,10,37,12],[53,10,53,12],[53,15,53,16],[64,10,64,12],[74,10,74,12],[74,15,74,16],[81,10,81,12],[91,10,91,12],[91,15,91,16],[98,10,98,12],[108,10,108,12],[108,15,108,16],[115,10,115,12],[125,10,125,12],[125,15,125,16],[132,10,132,12],[142,10,142,12],[142,15,142,16],[248,6,248,7],[149,10,149,12],[163,11,163,12],[163,15,163,16],[231,10,231,13],[231,15,231,16],[231,21,231,26],[231,27,231,32],[231,33,231,34],[231,35,231,40],[242,10,242,12]]}
[]
[]
[]
[]
[null,null,1,"Auswahl / Steuerelement (Untergrund)"]
[null,null,{"$f":"INDEX(E19:H34,C5,3)","v":0},"Auswahl / Menge pro m²"]
[null,null,{"$f":"INDEX(E19:H34,C5,4)","v":0},"Auswahl / Produkt"]
[null,null,{"$f":"INDEX(E19:I34,C5,5)","v":0},"Auswahl / Einheit"]
[null,null,{"$f":"INDEX(E19:J34,C5,6)","v":0},"Auswahl / Bermerkung zur Verdünnbarkeit",null,{"$f":"IF(C9=0,\"\",C9)","v":""}]
[null,null,{"$f":"INDEX(E19:K34,C5,7)","v":0},"Auswahl / Gebindegröße 1"]
[null,null,{"$f":"INDEX(E19:L34,C5,8)","v":0},"Auswahl / Gebindegröße 2"]
[null,null,{"$f":"INDEX(E19:M34,C5,9)","v":0},"Auswahl / Gebinde"]
[null,null,{"$f":"INDEX(E19:N34,C5,10)","v":0},"Auswahl / Bemerkung zu Mittel- und Dickbettmörtel",null,{"$f":"IF(C13=0,\"\",C13)","v":""}]
[null,null,{"$f":"INDEX(E19:Q34,C5,12)","v":"keine"},"Auswahl / Gebinde-Bezeichnung 1"]
[null,null,{"$f":"INDEX(E19:Q34,C5,13)","v":"  "},"Auswahl / Gebinde-Bezeichnung 2",null,"Verkettung"]
[null,null,{"$f":"INDEX(E19:T34,C5,14)","v":0},"Auswahl / Vekettung (Zeichen)",null,{"$f":"CONCATENATE(F9,C16,F13)","v":"0"}]
[null,null,{"$f":"INDEX(E19:T34,C5,16)","v":0},"Auswahl / Bemerkungen (Gebindegrößen)",null,{"$f":"IF(C17=0,\"\",C17)","v":""}]
[null,null,null,"INDEX","Produkt",null,"kg/m²/mm","Produkt","Einheit","Bermerkung zur Verdünnbarkeit","Gebinde",null,null,"Bemerkung zu Mittel- und Dickbettmörtel","Bemerkung","Gebinde-Bezeichnung",null,"Zeichen",null,"Bemerkung (Auswahlfeld - Gebindegröße)"]
[null,null,null,1,"keiner",null,null,null,null,null,null,null,null,null,null,"keine","  ",null,{"$f":"IF(AND(Q19=\"mind. 40 mm Aufbauhöhe\",R19=\"Abdichtung aus Dichtschlämme oder Schweißbahn erforderlich\"),\" / \",\"\")","v":""}]
[null,null,null,2,"\"alter\" Fliesen-, Beton- oder  Natursteinbelag",null,0.15,"Rabolin 230","kg","unverdünnt","5","10","Eimer",{"$f":"C162","v":0},null,"5 kg Eimer","10 kg Eimer",{"$f":"IF(N20=0,\"\",\" / \")","v":""},null," für Rabolin 230 - Haftprimer"]
[null,null,null,3,"Beton-Fertigteile",null,0.2,"Rabolin 230","kg","unverdünnt","5","10","Eimer",{"$f":"C162","v":0},null,"5 kg Eimer","10 kg Eimer",{"$f":"IF(N21=0,\"\",\" / \")","v":""},null," für Rabolin 230 - Haftprimer"]
[null,null,null,4,"Calciumsulfat-Estrich -CA/CAF- (ab 15 mm Kleber oder Mörtel)",null,0.25,"Rabolin 125","kg","Komponente A + B","7,5","15","Gebinde",{"$f":"C162","v":0},null,"7,5 kg Gebinde","15 kg Gebinde","",null," für Rabolin 125 - Epoxidharzgrundierung"]
[null,null,null,5,"Calciumsulfat-Estrich -CA/CAF- (bis 15 mm)",null,0.2,"Rabolin 190","Liter","unverdünnt","5","15","Eimer",{"$f":"C163","v":0},null,"5 Liter Kanister","15 Liter Kanister","",null," für Rabolin 190 - Estrichgrundierung"]
[null,null,null,6,"Gipskartonplatten",null,0.1,"Rabolin 130","Liter","2 : 1 verdünnt","5","10","Kanister",{"$f":"C162","v":0},null,"5 Liter Kanister","10 Liter Kanister","",null," für Rabolin 130 - Tiegrund LF"]
[null,null,null,7,"Gips-Putz",null,0.15,"Rabolin 130","Liter","unverdünnt","5","10","Kanister",{"$f":"C162","v":0},null,"5 Liter Kanister","10 Liter Kanister","",null," für Rabolin 130 - Tiegrund LF"]
[null,null,null,8,"Gussasphalt-Estrich -AS-",null,0.25,"Rabolin 230","kg","unverdünnt","5","10","Eimer",{"$f":"C162","v":0},null,"5kg Eimer","10kg Eimer","",null," für Rabolin 230 - Haftprimer"]
[null,null,null,9,"Holboden auf Calciumsulfatbasis (bis 15 mm)",null,0.2,"Rabolin 190","Liter","unverdünnt","5","15","Eimer",{"$f":"C167","v":0},null,"5 Liter Kanister","15 Liter Kanister",{"$f":"IF(N27=0,\"\",\" / \")","v":""},null," für Rabolin 190 - Estrichgrundierung"]
[null,null,null,10,"Holboden auf Zementbasis",null,0.05,"Rabolin 130","Liter","1 : 2 verdünnt","5","10","Eimer",{"$f":"C157","v":0},null,"5 Liter Kanister","10 Liter Kanister",{"$f":"IF(N28=0,\"\",\" / \")","v":""},null," für Rabolin 130 - Tiegrund LF"]
[null,null,null,11,"Kalk-Gips-Putz",null,0.1,"Rabolin 130","Liter","2 : 1 verdünnt","5","10","Kanister",{"$f":"C162","v":0},null,"5 Liter Kanister","10 Liter Kanister","",null," für Rabolin 130 - Tiegrund LF"]
[null,null,null,12,"Kalk-Zement-Putz",null,7.4999999999999997E-2,"Rabolin 130","Liter","1 : 1 verdünnbar","5","10","Kanister",{"$f":"C162","v":0},null,"5 Liter Kanister","10 Liter Kanister","",null," für Rabolin 130 - Tiegrund LF"]
[null,null,null,13,"Metall",null,0.25,"Rabolin 125","kg","Komponente A + B","7,5","15","Gebinde",{"$f":"C162","v":0},null,"7,5 kg Gebinde","15 kg Gebinde","",null," für Rabolin 125 - Epoxidharzgrundierung"]
[null,null,null,14,"Spanplatten",null,0.15,"Rabolin 230","kg","unverdünnt","5","10","Eimer",{"$f":"C162","v":0},null,"5 kg Eimer","10 kg Eimer","",null," für Rabolin 230 - Haftprimer"]
[null,null,null,15,"Zement-Estrich -CT-",null,0.05,"Rabolin 130","Liter","1 : 2 verdünnt","5","10","Kanister",{"$f":"C162","v":0},null,"5 Liter Kanister","10 Liter Kanister","",null," für Rabolin 130 - Tiegrund LF"]
[null,null,null,16,"Zement-Putz",null,0.05,"Rabolin 130","Liter","1 : 2 verdünnt","5","10","Kanister",{"$f":"C162","v":0},null,"5 Liter Kanister","10 Liter Kanister","",null," für Rabolin 130 - Tiegrund LF"]
[]
[null,null,1,"Auswahl / Steuerelement (Gebindegröße der Grundierung)"]
[null,null,{"$f":"INDEX(E39:N40,C36,8)","v":0},"Auswahl / Gebindegröße"]
[null,null,null,"INDEX","Produkt",null,null,null,null,null,"Gebinde"]
[null,null,null,1,{"$f":"C14","v":"keine"},null,null,null,null,null,null,{"$f":"C10","v":0}]
[null,null,null,2,{"$f":"C15","v":"  "},null,null,null,null,null,null,{"$f":"C11","v":0}]
[]
[null,null,1,"Auswahl / Steuerelement"]
[null,null,{"$f":"INDEX(E55:H60,C42,3)","v":0},"Auswahl / Verbrauch pro m² und mm"]
[null,null,{"$f":"INDEX(E55:H60,C42,4)","v":0},"Auswahl / Produkt"]
[null,null,{"$f":"INDEX(E55:I60,C42,5)","v":0},"Auswahl / Einheit"]
[null,null,{"$f":"INDEX(E55:J60,C42,6)","v":0},"Auswahl / Bemerkung zur Abdichtung - Gebindegröße 1"]
[null,null,{"$f":"INDEX(E55:K60,C42,7)","v":0},"Auswahl / Gebindegröße 1"]
[null,null,{"$f":"INDEX(E55:L60,C42,8)","v":0},"Auswahl / Gebindegröße 2"]
[null,null,{"$f":"INDEX(E55:N60,C42,9)","v":0},"Auswahl / Gebinde 1"]
[null,null,{"$f":"INDEX(E55:Q60,C42,11)","v":"  "},"Auswahl / Gebinde 2"]
[null,null,{"$f":"INDEX(E55:R60,C42,12)","v":"keine"},"Auswahl / Gebinde-Bezeichnung 1"]
[null,null,{"$f":"INDEX(E55:R60,C42,13)","v":"    "},"Auswahl / Gebinde-Bezeichnung 2"]
[null,null,{"$f":"INDEX(E55:S60,C42,14)","v":0},"Auswahl / Gebinde-Bezeichnung 2",null,{"$f":"IF(C53=0,\"\",C53)","v":""}]
[null,null,null,"INDEX","Produkt",null,"kg/m²/mm","Produkt","Einheit","Bemerkung zu Mittel- und Dickbettmörtel / Gebinde 1","Gebinde",null,null,"Bemerkung zu Mittel- und Dickbettmörtel / Gebinde 2","Gebinde 2","Gebinde-Bezeichnung",null,"Bemerkung (Auswahlfeld - Gebindegröße)"]
[null,null,null,1,"keine",null,null,null,null,null,null,null,null,null,"  ","keine","    "]
[null,null,null,2,"Innenbereich / Privat",null,1.5,"gräfix 352","kg",{"$f":"C161","v":0},"5","20","Eimer",{"$f":"C161","v":0},"Eimer","5 kg Eimer","20 kg Eimer"," für gräfix 352 - Rollabdichtung"]
[null,null,null,3,"Innenbereich / Öffentlich",null,1.5,"gräfix 351","kg",{"$f":"C161","v":0},"20","  ","Sack",null,"  ","20 kg Sack","  "," für gräfix 351 - Dichtschlämme 1K flex"]
[null,null,null,4,"Außenbereich",null,1.5,"gräfix 351","kg",{"$f":"C161","v":0},"20","  ","Sack",null,"  ","20 kg Sack","  "," für gräfix 351 - Dichtschlämme 1K flex"]
[null,null,null,5,"Dauernassbereich",null,1.5,"gräfix 351","kg",{"$f":"C161","v":0},"20","  ","Sack",null,"  ","20 kg Sack","  "," für gräfix 351 - Dichtschlämme 1K flex"]
[null,null,null,6,"Industrie / Großküchen",null,0.25,"Rabolin 125","kg",{"$f":"C161","v":0},"7,5","15","Kanister",{"$f":"C161","v":0},"Kanister","7,5 kg Gebinde","15 kg Gebinde"," für Rabolin 125 - Epoxidharzgrundierung"]
[]
[null,null,1,"Auswahl / Steuerelement (Gebindegröße der Abdichtung)"]
[null,null,{"$f":"INDEX(E66:N67,C62,8)","v":0},"Auswahl / Gebindegröße"]
[null,null,{"$f":"INDEX(E66:N67,C62,9)","v":0},"Auswahl / Gebindeart"]
[null,null,null,"INDEX","Produkt",null,null,null,null,null,"Gebinde"]
[null,null,null,1,{"$f":"C51","v":"keine"},null,null,null,null,null,null,{"$f":"C47","v":0},{"$f":"C49","v":0}]
[null,null,null,2,{"$f":"C52","v":"    "},null,null,null,null,null,null,{"$f":"C48","v":0},{"$f":"C50","v":"  "}]
[]
[null,null,{"$f":"IF(F69=TRUE,\"1\",\"2\")","v":"2"},"Auswahl / Steuerelement (Dichtband)",null,false]
[null,null,{"$f":"INDEX(E76:Q77,C69,3)","v":0},"Auswahl / Verbrauch pro m"]
[null,null,{"$f":"INDEX(E76:Q77,C69,4)","v":0},"Auswahl / Produkt"]
[null,null,{"$f":"INDEX(E76:Q77,C69,5)","v":0},"Auswahl / Einheit"]
[null,null,{"$f":"INDEX(E76:Q77,C69,7)","v":0},"Auswahl / Gebindegröße"]
[null,null,{"$f":"INDEX(E76:Q77,C69,9)","v":0},"Auswahl / Gebindeart"]
[null,null,null,"INDEX","Produkt",null,"lfm","Produkt","Einheit","Bemerkung zu Mittel- und Dickbettmörtel / Gebinde 1","Gebinde",null,null,"Bemerkung zu Mittel- und Dickbettmörtel / Gebinde 2","Gebinde 2","Gebinde-Bezeichnung"]
[null,null,null,1,"Dichtband",null,1,"gräfix 353","m",null,"50",null,"Rolle",null,"  ","keine","    "]
[null,null,null,2]
[]
[null,null,1,"Auswahl / Steuerelement Gebinde (Dichtband)"]
[null,null,{"$f":"INDEX(E83:N84,C79,8)","v":0},"Auswahl / Gebindegröße"]
[null,null,{"$f":"INDEX(E83:N84,C79,9)","v":5},"Auswahl / Gebindeart"]
[null,null,{"$f":"INDEX(E83:N84,C79,4)","v":"gräfix 35305"},"INDEX","Produkt",null,null,"Produkt",null,"Steuerelement","Gebinde"]
[null,null,null,1,"Dichtband",null,null,"gräfix 35305",null,{"$f":"IF(F69=TRUE,\"5 m Rolle\",\" \")","v":" "},null,{"$f":"C74","v":0},5]
[null,null,null,2,"Dichtband",null,null,"gräfix 35305",null,{"$f":"IF(F69=TRUE,\"50 m Rolle\",\" \")","v":" "},null,{"$f":"C74","v":0},50]
[]
[null,null,{"$f":"IF(F86=TRUE,\"1\",\"2\")","v":"2"},"Auswahl / Steuerelement (Dichtecke / innen)",null,false]
[null,null,{"$f":"INDEX(E93:Q94,C86,3)","v":0},"Auswahl / Verbrauch pro Stück"]
[null,null,{"$f":"INDEX(E93:Q94,C86,4)","v":0},"Auswahl / Produkt"]
[null,null,{"$f":"INDEX(E93:Q94,C86,5)","v":0},"Auswahl / Einheit"]
[null,null,{"$f":"INDEX(E93:Q94,C86,7)","v":0},"Auswahl / Gebindegröße"]
[null,null,{"$f":"INDEX(E93:Q94,C86,9)","v":0},"Auswahl / Gebindeart"]
[null,null,null,"INDEX","Produkt",null,"Stück","Produkt","Einheit","Bemerkung zu Mittel- und Dickbettmörtel / Gebinde 1","Gebinde",null,null,"Bemerkung zu Mittel- und Dickbettmörtel / Gebinde 2","Gebinde 2","Gebinde-Bezeichnung"]
[null,null,null,1,"Dichtecke, innen",null,1,"gräfix 3541","Stück",null,"25",null,"Karton",null,"  ","keine","    "]
[null,null,null,2]
[]
[null,null,1,"Auswahl / Steuerelement Gebinde (Dichtecke, innen)"]
[null,null,{"$f":"INDEX(E100:N101,C96,8)","v":"Stück"},"Auswahl / Gebindegröße"]
[null,null,{"$f":"INDEX(E100:N101,C96,9)","v":1},"Auswahl / Gebindeart"]
[null,null,{"$f":"INDEX(E100:N101,C96,4)","v":"gräfix 3541"},"INDEX","Produkt",null,null,"Produkt",null,"Steuerelement","Gebinde"]
[null,null,{"$f":"INDEX(E100:N101,C96,8)","v":"Stück"},1,"Dichtecke, innen",null,null,"gräfix 3541",null,{"$f":"IF(F86=TRUE,\"1 Stück\",\" \")","v":" "},null,"Stück",1]
[null,null,null,2,"Dichtecke, innen",null,null,"gräfix 354125",null,{"$f":"IF(F86=TRUE,\"25 Stück\",\" \")","v":" "},null,"Karton",25]
[]
[null,null,{"$f":"IF(F103=TRUE,\"1\",\"2\")","v":"2"},"Auswahl / Steuerelement (Dichtecke / außen)",null,false]
[null,null,{"$f":"INDEX(E110:Q111,C103,3)","v":0},"Auswahl / Verbrauch pro Stück"]
[null,null,{"$f":"INDEX(E110:Q111,C103,4)","v":0},"Auswahl / Produkt"]
[null,null,{"$f":"INDEX(E110:Q111,C103,5)","v":0},"Auswahl / Einheit"]
[null,null,{"$f":"INDEX(E110:Q111,C103,7)","v":0},"Auswahl / Gebindegröße"]
[null,null,{"$f":"INDEX(E110:Q111,C103,9)","v":0},"Auswahl / Gebindeart"]
[null,null,null,"INDEX","Produkt",null,"Stück","Produkt","Einheit","Bemerkung zu Mittel- und Dickbettmörtel / Gebinde 1","Gebinde",null,null,"Bemerkung zu Mittel- und Dickbettmörtel / Gebinde 2","Gebinde 2","Gebinde-Bezeichnung"]
[null,null,null,1,"Dichtecke, außen",null,1,"gräfix 3542","Stück",null,"25",null,"Karton",null,"  ","keine","    "]
[null,null,null,2]
[]
[null,null,1,"Auswahl / Steuerelement Gebinde (Dichtecke, außen)"]
[null,null,{"$f":"INDEX(E117:N118,C113,8)","v":"Stück"},"Auswahl / Gebindegröße"]
[null,null,{"$f":"INDEX(E117:N118,C113,9)","v":1},"Auswahl / Gebindeart"]
[null,null,{"$f":"INDEX(E117:N118,C113,4)","v":"gräfix 3542"},"INDEX","Produkt",null,null,"Produkt",null,"Steuerelement","Gebinde"]
[null,null,{"$f":"INDEX(E117:N118,C113,8)","v":"Stück"},1,"Dichtecke, außen",null,null,"gräfix 3542",null,{"$f":"IF(F103=TRUE,\"1 Stück\",\" \")","v":" "},null,"Stück",1]
[null,null,null,2,"Dichtecke, außen",null,null,"gräfix 354225",null,{"$f":"IF(F103=TRUE,\"25 Stück\",\" \")","v":" "},null,"Karton",25]
[]
[null,null,{"$f":"IF(F120=TRUE,\"1\",\"2\")","v":"2"},"Auswahl / Steuerelement (Wandmanschette)",null,false]
[null,null,{"$f":"INDEX(E127:Q128,C120,3)","v":0},"Auswahl / Verbrauch pro Stück"]
[null,null,{"$f":"INDEX(E127:Q128,C120,4)","v":0},"Auswahl / Produkt"]
[null,null,{"$f":"INDEX(E127:Q128,C120,5)","v":0},"Auswahl / Einheit"]
[null,null,{"$f":"INDEX(E127:Q128,C120,7)","v":0},"Auswahl / Gebindegröße"]
[null,null,{"$f":"INDEX(E127:Q128,C120,9)","v":0},"Auswahl / Gebindeart"]
[null,null,null,"INDEX","Produkt",null,"Stück","Produkt","Einheit","Bemerkung zu Mittel- und Dickbettmörtel / Gebinde 1","Gebinde",null,null,"Bemerkung zu Mittel- und Dickbettmörtel / Gebinde 2","Gebinde 2","Gebinde-Bezeichnung"]
[null,null,null,1,"Wandmanschette",null,1,"gräfix 355","Stück",null,"20",null,"Karton",null,"  ","keine","    "]
[null,null,null,2]
[]
[null,null,1,"Auswahl / Steuerelement Gebinde (Wandmanschette)"]
[null,null,{"$f":"INDEX(E134:N135,C130,8)","v":"Stück"},"Auswahl / Gebindegröße"]
[null,null,{"$f":"INDEX(E134:N135,C130,9)","v":1},"Auswahl / Gebindeart"]
[null,null,{"$f":"INDEX(E134:N135,C130,4)","v":"gräfix 355"},"INDEX","Produkt",null,null,"Produkt",null,"Steuerelement","Gebinde"]
[null,null,{"$f":"INDEX(E134:N135,C130,8)","v":"Stück"},1,"Wandmanschette",null,null,"gräfix 355",null,{"$f":"IF(F120=TRUE,\"1 Stück\",\" \")","v":" "},null,"Stück",1]
[null,null,null,2,"Wandmanschette",null,null,"gräfix 35520",null,{"$f":"IF(F120=TRUE,\"20 Stück\",\" \")","v":" "},null,"Karton",20]
[]
[null,null,{"$f":"IF(F137=TRUE,\"1\",\"2\")","v":"2"},"Auswahl / Steuerelement (Bodenmanschette)",null,false]
[null,null,{"$f":"INDEX(E144:Q145,C137,3)","v":0},"Auswahl / Verbrauch pro Stück"]
[null,null,{"$f":"INDEX(E144:Q145,C137,4)","v":0},"Auswahl / Produkt"]
[null,null,{"$f":"INDEX(E144:Q145,C137,5)","v":0},"Auswahl / Einheit"]
[null,null,{"$f":"INDEX(E144:Q145,C137,7)","v":0},"Auswahl / Gebindegröße"]
[null,null,{"$f":"INDEX(E144:Q145,C137,9)","v":0},"Auswahl / Gebindeart"]
[null,null,null,"INDEX","Produkt",null,"Stück","Produkt","Einheit","Bemerkung zu Mittel- und Dickbettmörtel / Gebinde 1","Gebinde",null,null,"Bemerkung zu Mittel- und Dickbettmörtel / Gebinde 2","Gebinde 2","Gebinde-Bezeichnung"]
[null,null,null,1,"Bodenmanschette",null,1,"gräfix 356","Stück",null,"10",null,"Karton",null,"  ","keine","    "]
[null,null,null,2]
[]
[null,null,1,"Auswahl / Steuerelement Gebinde (Bodenmanschette)"]
[null,null,{"$f":"INDEX(E151:N152,C147,8)","v":"Stück"},"Auswahl / Gebindegröße"]
[null,null,{"$f":"INDEX(E151:N152,C147,9)","v":1},"Auswahl / Gebindeart"]
[null,null,{"$f":"INDEX(E151:N152,C147,4)","v":"gräfix 356"},"INDEX","Produkt",null,null,"Produkt",null,"Steuerelement","Gebinde"]
[null,null,{"$f":"INDEX(E151:N152,C147,8)","v":"Stück"},1,"Bodenmanschette",null,null,"gräfix 356",null,{"$f":"IF(F137=TRUE,\"1 Stück\",\" \")","v":" "},null,"Stück",1]
[null,null,null,2,"Bodenmanschette",null,null,"gräfix 35610",null,{"$f":"IF(F137=TRUE,\"10 Stück\",\" \")","v":" "},null,"Karton",10]
[]
[null,null,1,"Auswahl / Steuerelemt (Kleber / Mörtel)"]
[null,null,{"$f":"INDEX(E165:R195,C154,2)","v":1},"Auswahl / Verbrauch pro m² und Höhe (zusätzlich \"0\" für bedingte Formatierung)"]
[null,null,{"$f":"INDEX(E165:R195,C154,3)","v":0},"Auswahl / Verbrauch pro m² und Höhe"]
[null,null,{"$f":"INDEX(E165:R195,C154,4)","v":0},"Auswahl / Produkt"]
[null,null,{"$f":"INDEX(E165:R195,C154,5)","v":0},"Auswahl / Einheit"]
[null,null,{"$f":"INDEX(E165:R195,C154,8)","v":0},"Auswahl / Gebindegröße"]
[null,null,{"$f":"INDEX(E165:R195,C154,9)","v":0},"Auswahl / Gebindegröße"]
[null,null,{"$f":"INDEX(E165:R195,C154,6)","v":0},"Auswahl / Bemerkung zur Abdichtung"]
[null,null,{"$f":"INDEX(E165:R195,C154,10)","v":0},"Auswahl / Bemerkung zur Grundierung"]
[null,null,{"$f":"INDEX(E165:R195,C154,11)","v":0},"Auswahl / Bemerkung zur Grundierung R 190"]
[null,null,{"$f":"INDEX(E165:R195,C154,14)","v":0},"INDEX","Produkt","kg/m²/mm","kg/m²/h","Produkt","Einheit","Bemerkung zur Abdichtung",null,"Gebinde",null,"Bemerkung zur Grundierung","Bemerkung zur Grundierung R 190","Gebinde 2",null,"Bemerkung zur Grundierung R 190"]
[null,null,null,1,"keiner",1]
[null,null,null,2,"gräfix 30 Fliesen- und Baukleber, grau  bis 5 mm",0,{"$f":"C198","v":1.5},"gräfix 30","kg","Nur mit Kontaktschicht aus einem gräfix C2 Dünn- oder Mittelbettkleber möglich",null,25,"Sack",null,null,42,"Palette"]
[null,null,null,3,"gräfix 31 Standard Fliesenkleber, grau  bis 5 mm",0,{"$f":"C198","v":1.5},"gräfix 31","kg",null,null,25,"Sack",null,null,42,"Palette"]
[null,null,null,4,"gräfix 310 Standard Flex-Fliesenkleber, grau  bis 5 mm",0,{"$f":"C198","v":1.5},"gräfix 310","kg",null,null,25,"Sack",null,null,42,"Palette"]
[null,null,null,5,"gräfix 310 S Standard Flex-Fliesenkleber, schnell, grau  bis 5 mm",0,{"$f":"C198","v":1.5},"gräfix 310 S","kg",null,null,25,"Sack",null,null,42,"Palette"]
[null,null,null,6,"gräfix 32 Flex-Fliesenkleber, grau  bis 5 mm",0,{"$f":"C198","v":1.5},"gräfix 32","kg",null,null,25,"Sack",null,null,42,"Palette"]
[null,null,null,7,"gräfix 3200 Flex-Schnellklber, weiß  bis 5 mm",0,{"$f":"C198","v":1.5},"gräfix 3200","kg",null,null,25,"Sack",null,null,42,"Palette"]
[null,null,null,8,"gräfix 3210 CR Flex-Schnellklber, grau  bis 5 mm",0,{"$f":"C198","v":1.5},"gräfix 3210 CR","kg",null,null,25,"Sack",null,null,42,"Palette"]
[null,null,null,9,"gräfix 311 Natursteinkleber auf Trassbasis, grau  bis 5 mm",0,{"$f":"C198","v":1.5},"gräfix 311","kg",null,null,25,"Sack",null,null,42,"Palette"]
[null,null,null,10,"gräfix 312 Natursteinkleber auf Trassbasis, weiß  bis 5 mm",0,{"$f":"C198","v":1.5},"gräfix 312","kg",null,null,25,"Sack",null,null,42,"Palette"]
[null,null,null,11,"gräfix 34 Mittelbettmörtel auf Trassbasis, grau  5 bis 20 mm",1.4,{"$f":"1/0.7*'Verbrauchsrechner-Mörtel'!F23","v":0},"gräfix 34","kg","Nur mit Kontaktschicht aus einem gräfix C2 Dünn- oder Mittelbettkleber möglich",null,25,"Sack",null,null,48,"Palette",{"$f":"IF('Verbrauchsrechner-Mörtel'!F23<5,\"mind. 5 mm Auftragstärke\",IF('Verbrauchsrechner-Mörtel'!F23>20,\"max. 20 mm Auftragstärke\",\"\"))","v":"mind. 5 mm Auftragstärke"}]
[null,null,null,12,"gräfix 34 fein Mittelbettmörtel auf Trassbasis, grau, fein  5 bis 15 mm",1.4,{"$f":"1/0.7*'Verbrauchsrechner-Mörtel'!F23","v":0},"gräfix 34 fein","kg","Nur mit Kontaktschicht aus einem gräfix C2 Dünn- oder Mittelbettkleber möglich",null,25,"Sack",null,null,48,"Palette",{"$f":"IF('Verbrauchsrechner-Mörtel'!F23<5,\"mind. 5 mm Auftragstärke\",IF('Verbrauchsrechner-Mörtel'!F23>15,\"max. 15 mm Auftragstärke\",\"\"))","v":"mind. 5 mm Auftragstärke"}]
[null,null,null,13,"gräfix 342 Mittelbettmörtel auf Trassbasis, weiß  5 bis 20 mm",1.4,{"$f":"1/0.7*'Verbrauchsrechner-Mörtel'!F23","v":0},"gräfix 342","kg","Nur mit Kontaktschicht aus einem gräfix C2 Dünn- oder Mittelbettkleber möglich",null,25,"Sack",null,null,48,"Palette",{"$f":"IF('Verbrauchsrechner-Mörtel'!F23<5,\"mind. 5 mm Auftragstärke\",IF('Verbrauchsrechner-Mörtel'!F23>20,\"max. 20 mm Auftragstärke\",\"\"))","v":"mind. 5 mm Auftragstärke"}]
[null,null,null,14,"gräfix 343 Mittelbettmörtel auf Trassbasis, grau, flex  5 bis 20 mm",1.4,{"$f":"1/0.7*'Verbrauchsrechner-Mörtel'!F23","v":0},"gräfix 343","kg","Nur mit Kontaktschicht aus einem gräfix C2 Dünn- oder Mittelbettkleber möglich",null,25,"Sack",null,null,48,"Palette",{"$f":"IF('Verbrauchsrechner-Mörtel'!F23<5,\"mind. 5 mm Auftragstärke\",IF('Verbrauchsrechner-Mörtel'!F23>20,\"max. 20 mm Auftragstärke\",\"\"))","v":"mind. 5 mm Auftragstärke"}]
[null,null,null,15,"gräfix 3423 Mittelbettmörtel auf Trassbasis, weiß, flex  5 bis 20 mm",1.4,{"$f":"1/0.7*'Verbrauchsrechner-Mörtel'!F23","v":0},"gräfix 3423","kg","Nur mit Kontaktschicht aus einem gräfix C2 Dünn- oder Mittelbettkleber möglich",null,25,"Sack",null,null,48,"Palette",{"$f":"IF('Verbrauchsrechner-Mörtel'!F23<5,\"mind. 5 mm Auftragstärke\",IF('Verbrauchsrechner-Mörtel'!F23>20,\"max. 20 mm Auftragstärke\",\"\"))","v":"mind. 5 mm Auftragstärke"}]
[null,null,null,16,"gräfix 3423 fein Mittelbettmörtel auf Trassbasis, weiß, fein, flex  5 bis 15 mm",1.4,{"$f":"1/0.7*'Verbrauchsrechner-Mörtel'!F23","v":0},"gräfix 3423 fein","kg",null,null,25,"Sack",null,null,48,"Palette",{"$f":"IF('Verbrauchsrechner-Mörtel'!F23<5,\"mind. 5 mm Auftragstärke\",IF('Verbrauchsrechner-Mörtel'!F23>15,\"max. 15 mm Auftragstärke\",\"\"))","v":"mind. 5 mm Auftragstärke"}]
[null,null,null,17,"gräfix 34 S Mittelbettkleber, grau, schnell  5 bis 15 mm",1.3,{"$f":"1.3*'Verbrauchsrechner-Mörtel'!F23","v":0},"gräfix 34 S","kg",null,null,25,"Sack",null,null,42,"Palette",{"$f":"IF('Verbrauchsrechner-Mörtel'!F23<5,\"mind. 5 mm Auftragstärke\",IF('Verbrauchsrechner-Mörtel'!F23>15,\"max. 15 mm Auftragstärke\",\"\"))","v":"mind. 5 mm Auftragstärke"}]
[null,null,null,18,"gräfix 342 S Mittelbettkleber, weiß, schnell  5 bis 15 mm",1.3,{"$f":"1.3*'Verbrauchsrechner-Mörtel'!F23","v":0},"gräfix 342 S","kg",null,null,25,"Sack",null,null,42,"Palette",{"$f":"IF('Verbrauchsrechner-Mörtel'!F23<5,\"mind. 5 mm Auftragstärke\",IF('Verbrauchsrechner-Mörtel'!F23>15,\"max. 15 mm Auftragstärke\",\"\"))","v":"mind. 5 mm Auftragstärke"}]
[null,null,null,19,"gräfix 3410 CR Mittelkleber, hellgrau, schnell  5 bis 15 mm",1.3,{"$f":"F183*'Verbrauchsrechner-Mörtel'!F23","v":0},"gräfix 3410 CR","kg",null,null,25,"Sack",null,null,42,"Palette",{"$f":"IF('Verbrauchsrechner-Mörtel'!F23<5,\"mind. 5 mm Auftragstärke\",IF('Verbrauchsrechner-Mörtel'!F23>15,\"max. 15 mm Auftragstärke\",\"\"))","v":"mind. 5 mm Auftragstärke"}]
[null,null,null,20,"gräfix 43 Natursteinverlegemörtel auf Trassbasis, grau  15 bis 40 mm",{"$f":"1/0.63","v":1.5873015873015872},{"$f":"1/0.63*'Verbrauchsrechner-Mörtel'!F23","v":0},"gräfix 43","kg","Nur mit Kontaktschicht aus einem gräfix C2 Dünn- oder Mittelbettkleber möglich",null,25,"Sack","Nur mit Kontaktschicht aus einem gräfix C2 Dünnbettkleber möglich","Grundierung ist nicht für diese Art der Verlegung geignet",48,"Palette",{"$f":"IF('Verbrauchsrechner-Mörtel'!F23<15,\"mind. 15 mm Auftragstärke\",IF('Verbrauchsrechner-Mörtel'!F23>40,\"max. 40 mm Auftragstärke\",\"\"))","v":"mind. 15 mm Auftragstärke"}]
[null,null,null,21,"gräfix 434 Natursteinverlegemörtel auf Trassbasis, grau, grob  20 bis 60 mm",{"$f":"1/0.63","v":1.5873015873015872},{"$f":"1/0.63*'Verbrauchsrechner-Mörtel'!F23","v":0},"gräfix 434","kg","Nur mit Kontaktschicht aus einem gräfix C2 Dünn- oder Mittelbettkleber möglich",null,25,"Sack","Nur mit Kontaktschicht aus einem gräfix C2 Dünnbettkleber möglich","Grundierung ist nicht für diese Art der Verlegung geignet",48,"Palette",{"$f":"IF('Verbrauchsrechner-Mörtel'!F23<20,\"mind. 20 mm Auftragstärke\",IF('Verbrauchsrechner-Mörtel'!F23>60,\"max. 60 mm Auftragstärke\",\"\"))","v":"mind. 20 mm Auftragstärke"}]
[null,null,null,22,"gräfix 433 Natursteinverlegemörtel auf Trassbasis, grau, flex  15 bis 40 mm",{"$f":"1/0.6","v":1.6666666666666667},{"$f":"1/0.6*'Verbrauchsrechner-Mörtel'!F23","v":0},"gräfix 433","kg","Nur mit Kontaktschicht aus einem gräfix C2 Dünn- oder Mittelbettkleber möglich",null,25,"Sack","Nur mit Kontaktschicht aus einem gräfix C2 Dünnbettkleber möglich","Grundierung ist nicht für diese Art der Verlegung geignet",48,"Palette",{"$f":"IF('Verbrauchsrechner-Mörtel'!F23<15,\"mind. 15 mm Auftragstärke\",IF('Verbrauchsrechner-Mörtel'!F23>40,\"max. 40 mm Auftragstärke\",\"\"))","v":"mind. 15 mm Auftragstärke"}]
[null,null,null,23,"gräfix 450 Trass-Verlegemörtel, grau  15 bis 40 mm",{"$f":"1/0.6","v":1.6666666666666667},{"$f":"1/0.6*'Verbrauchsrechner-Mörtel'!F23","v":0},"gräfix 450","kg","Nur mit Kontaktschicht aus einem gräfix C2 Dünn- oder Mittelbettkleber möglich",null,30,"Sack","Nur mit Kontaktschicht aus einem gräfix C2 Dünnbettkleber möglich","Grundierung ist nicht für diese Art der Verlegung geignet",40,"Palette",{"$f":"IF('Verbrauchsrechner-Mörtel'!F23<15,\"mind. 15 mm Auftragstärke\",IF('Verbrauchsrechner-Mörtel'!F23>40,\"max. 40 mm Auftragstärke\",\"\"))","v":"mind. 15 mm Auftragstärke"}]
[null,null,null,24,"gräfix 454 Trass-Verlegemörtel, grau, grob  20 bis 60 mm",{"$f":"1/0.6","v":1.6666666666666667},{"$f":"1/0.6*'Verbrauchsrechner-Mörtel'!F23","v":0},"gräfix 454","kg","Nur mit Kontaktschicht aus einem gräfix C2 Dünn- oder Mittelbettkleber möglich",null,30,"Sack","Nur mit Kontaktschicht aus einem gräfix C2 Dünnbettkleber möglich","Grundierung ist nicht für diese Art der Verlegung geignet",40,"Palette",{"$f":"IF('Verbrauchsrechner-Mörtel'!F23<20,\"mind. 20 mm Auftragstärke\",IF('Verbrauchsrechner-Mörtel'!F23>60,\"max. 60 mm Auftragstärke\",\"\"))","v":"mind. 20 mm Auftragstärke"}]
[null,null,null,25,"gräfix 419 Monodrän-Einkornmörtel mind. 20 mm",1.667,{"$f":"1.667*'Verbrauchsrechner-Mörtel'!F23","v":0},"gräfix 419","kg","Nur mit Kontaktschicht aus einem gräfix C2 Dünn- oder Mittelbettkleber möglich",null,25,"Sack","Nur mit Kontaktschicht aus einem gräfix C2 Dünnbettkleber möglich","Grundierung ist nicht für diese Art der Verlegung geignet",40,"Palette",{"$f":"IF('Verbrauchsrechner-Mörtel'!F23<20,\"mind. 20 mm Auftragstärke\",\"\")","v":"mind. 20 mm Auftragstärke"}]
[null,null,null,26,"gräfix 439 Fensterbankverlegemörtel, weiß   10 - 60 mm",{"$f":"1/1.2","v":0.83333333333333337},{"$f":"1/1.2*'Verbrauchsrechner-Mörtel'!F23","v":0},"gräfix 439","kg","Kombination nicht möglich / Mörtel für dies Beanspruchung nicht geeignet",null,20,"Sack","Art der Verlegung ist für diesen Untergrund nicht geignet","Grundierung ist nicht für diese Art der Verlegung geignet",40,"Palette",{"$f":"IF('Verbrauchsrechner-Mörtel'!F23<10,\"mind. 10 mm Auftragstärke\",IF('Verbrauchsrechner-Mörtel'!F23>60,\"max. 60 mm Auftragstärke\",\"\"))","v":"mind. 10 mm Auftragstärke"}]
[null,null,null,27,"gräfix 55 Trass-Kalk-Mauermörtel, grau",{"$f":"1/0.65","v":1.5384615384615383},{"$f":"1/0.65*'Verbrauchsrechner-Mörtel'!F23","v":0},"gräfix 55","kg","Kombination nicht möglich / Mörtel für dies Beanspruchung nicht geeignet",null,30,"Sack","Art der Verlegung ist für diesen Untergrund nicht geignet","Grundierung ist nicht für diese Art der Verlegung geignet",40,"Palette",{"$f":"IF('Verbrauchsrechner-Mörtel'!F23<15,\"mind. 15 mm Auftragstärke\",IF('Verbrauchsrechner-Mörtel'!F23>40,\"max. 40 mm Auftragstärke\",\"\"))","v":"mind. 15 mm Auftragstärke"}]
[null,null,null,28,"gräfix 56 Trass-Zement-Mauermörtel, grau",{"$f":"1/0.6","v":1.6666666666666667},{"$f":"1/0.6*'Verbrauchsrechner-Mörtel'!F23","v":0},"gräfix 56","kg","Nur mit Kontaktschicht aus einem gräfix C2 Dünn- oder Mittelbettkleber möglich",null,30,"Sack","Nur mit Kontaktschicht aus einem gräfix C2 Dünnbettkleber möglich","Grundierung ist nicht für diese Art der Verlegung geignet",40,"Palette",{"$f":"IF('Verbrauchsrechner-Mörtel'!F23<15,\"mind. 15 mm Auftragstärke\",IF('Verbrauchsrechner-Mörtel'!F23>40,\"max. 40 mm Auftragstärke\",\"\"))","v":"mind. 15 mm Auftragstärke"}]
[null,null,null,29,"gräfix 56 grob Trass-Zement-Mauermörtel, grau, grob",{"$f":"1/0.6","v":1.6666666666666667},{"$f":"1/0.6*'Verbrauchsrechner-Mörtel'!F23","v":0},"gräfix 56 grob","kg","Nur mit Kontaktschicht aus einem gräfix C2 Dünn- oder Mittelbettkleber möglich",null,30,"Sack","Nur mit Kontaktschicht aus einem gräfix C2 Dünnbettkleber möglich","Grundierung ist nicht für diese Art der Verlegung geignet",40,"Palette",{"$f":"IF('Verbrauchsrechner-Mörtel'!F23<20,\"mind. 20 mm Auftragstärke\",IF('Verbrauchsrechner-Mörtel'!F23>60,\"max. 60 mm Auftragstärke\",\"\"))","v":"mind. 20 mm Auftragstärke"}]
[null,null,null,30,null,null,null,null,"kg",null,null,null,"Sack"]
[null,null,null,31,null,null,null,null,"kg",null,null,null,"Sack"]
[]
[null,null,1,"Auswahl / Steuerelement (Zahnkelle)"]
[null,null,{"$f":"INDEX(E199:M204,C197,4)","v":1.5},"Auswahl / Zahnkelle"]
[null,null,null,1,{"$f":"IF(C155=0,\"4er Zahnung\",\" \")","v":" "},null,null,1.5,"kg"]
[null,null,null,2,{"$f":"IF(C155=0,\"6er Zahnung\",\" \")","v":" "},null,null,2.2999999999999998,"kg"]
[null,null,null,3,{"$f":"IF(C155=0,\"8er Zahnung\",\" \")","v":" "},null,null,3.5,"kg"]
[null,null,null,4,{"$f":"IF(C155=0,\"10er Zahnung\",\" \")","v":" "},null,null,5,"kg"]
[null,null,null,5,{"$f":"IF(C155=0,\"12,5er Zahnung\",\" \")","v":" "},null,null,6,"kg"]
[null,null,null,6,{"$f":"IF(C155=0,\"15er Zahnung\",\" \")","v":" "},null,null,7,"kg"]
[]
[null,null,"Liter Fuge",{"$f":"((D207*((C233+C238)+(C234)))+((C235)+(10-C238)))*C237*C238","v":{"$error":"#DIV/0!"}}]
[null,null,"Anzahl Fliesen",{"$f":"'Verbrauchsrechner-Mörtel'!F5/(('Verbrauchsrechner-Mörtel'!F30/10+'Verbrauchsrechner-Mörtel'!F33/100)*('Verbrauchsrechner-Mörtel'!F31/10+'Verbrauchsrechner-Mörtel'!F33/100))*100","v":{"$error":"#DIV/0!"}},"m2 Fliesen",{"$f":"(('Verbrauchsrechner-Mörtel'!F30*'Verbrauchsrechner-Mörtel'!F31)/10000)*D207","v":{"$error":"#DIV/0!"}}]
[null,null,"kg Fugenmasse",{"$f":"D206*C211","v":{"$error":"#DIV/0!"}}]
[null,null,"m2 Fläche",{"$f":"'Verbrauchsrechner-Mörtel'!F5","v":0},"m2 Fuge",{"$f":"D209-F207","v":{"$error":"#DIV/0!"}}]
[null,null,1,"Auswahl / Steuerelement (Fugenmörtel)"]
[null,null,{"$f":"INDEX(E233:Q238,C210,2)","v":0},"Auswahl / kg pro Liter"]
[null,null,{"$f":"INDEX(E233:Q238,C210,4)","v":0},"Auswahl / Produkt"]
[null,null,{"$f":"INDEX(E233:Q238,C210,5)","v":0},"Auswahl / Einheit"]
[null,null,{"$f":"INDEX(E233:Q238,C210,7)","v":0},"Auswahl / Gebindegröße 1"]
[null,null,{"$f":"INDEX(E233:Q238,C210,8)","v":0},"Auswahl / Gebindegröße 2"]
[null,null,{"$f":"INDEX(E233:Q238,C210,9)","v":0},"Auswahl / Gebinde 1"]
[null,null,{"$f":"INDEX(E233:Q238,C210,10)","v":0},"Auswahl / Gebinde 2"]
[null,{"$f":"INDEX(E233:AI238,C210,30)","v":"keine"},{"$f":"INDEX(E233:Q238,C210,12)","v":"keine"},"Auswahl / Gebinde-Bezeichnung 1"]
[null,{"$f":"INDEX(E233:AI238,C210,31)","v":0},{"$f":"INDEX(E233:Q238,C210,13)","v":"    "},"Auswahl / Gebinde-Bezeichnung 2"]
[null,null,{"$f":"INDEX(E233:R238,C210,14)","v":0},"Auswahl / Gebinde-Bezeichnung 2",null,{"$f":"IF(C220=0,\"\",C220)","v":""}]
[null,null,{"$f":"INDEX(E233:R238,C210,11)","v":0},"Auswahl / Bemerkung 2",null,{"$f":"IF(C221=0,\"\",C221)","v":""},null,null,null,null,{"$f":"C224","v":0}]
[null,null,{"$f":"INDEX(E233:AO238,C210,6)","v":0},"Auswahl / Bemerkung 1",null,{"$f":"IF(C222=0,\"\",C222)","v":""},null,null,null,null,{"$f":"C225","v":0}]
[null,null,{"$f":"INDEX(E233:S238,C210,15)","v":0},"Auswahl / Zeichen",null,{"$f":"IF(C223=0,\"\",C223)","v":""}]
[null,null,{"$f":"INDEX(E233:T238,C210,16)","v":0},"Auswahl / Zeichen (Nummer)"]
[null,null,{"$f":"INDEX(E233:U238,C210,17)","v":0},"Auswahl / Zeichen (Nummer)"]
[{"$f":"INDEX(E233:AO238,C210,32)","v":"keine"},{"$f":"INDEX(E233:AI238,C210,24)","v":"keine"},{"$f":"INDEX(E233:AI238,C210,18)","v":"keine"},"Farbe 1"]
[{"$f":"INDEX(E233:AO238,C210,33)","v":0},{"$f":"INDEX(E233:AI238,C210,25)","v":0},{"$f":"INDEX(E233:AI238,C210,19)","v":0},"Farbe 2"]
[{"$f":"INDEX(E233:AO238,C210,34)","v":0},{"$f":"INDEX(E233:AI238,C210,26)","v":0},{"$f":"INDEX(E233:AI238,C210,20)","v":0},"Farbe 3"]
[{"$f":"INDEX(E233:AO238,C210,35)","v":0},{"$f":"INDEX(E233:AI238,C210,27)","v":0},{"$f":"INDEX(E233:AI238,C210,21)","v":0},"Farbe 4"]
[{"$f":"INDEX(E233:AO238,C210,36)","v":0},{"$f":"INDEX(E233:AI238,C210,28)","v":0},{"$f":"INDEX(E233:AI238,C210,22)","v":0},"Farbe 5"]
[{"$f":"INDEX(E233:AO238,C210,37)","v":0},{"$f":"INDEX(E233:AI238,C210,29)","v":0},{"$f":"INDEX(E233:AI238,C210,23)","v":0},"Farbe 6"]
[null,"Zwischenrechnung",null,"INDEX","Produkt","kg Liter",null,"Produkt","Einheit","Bemerkung 1","Gebinde",null,null,null,"Bemerkung 2","Gebinde-Bezeichnung",null,"Bemerkung (Auswahlfeld - Gebindegröße)","Zeichen","Zeichen (Nummerisch)","Zeichen (Nummerisch)","Farben",null,null,null,null,null,"Farben-Code",null,null,null,null,null,"Gebinde-Code",null,"Farben-Code / Bild"]
[null,"Plattenbreite",{"$f":"'Verbrauchsrechner-Mörtel'!F30/10","v":0},1,"keiner",0,null,null,null,null,null,null,null,null,null,"keine","    ",null,null,null,null,"keine",null,null,null,null,null,"keine",null,null,null,null,null,"keine",null,"keine"]
[null,"Plattenlänge",{"$f":"'Verbrauchsrechner-Mörtel'!F31/10","v":0},2,"gräfix 3300 Fliesen- und Natursteinflexfuge, schmal,   bis 6 mm",1.5,null,"gräfix 33","kg",null,5,25,"Eimer","Sack",{"$f":"IF('Hintergrund-Mörtel'!F33,\"max. 6 mm Fugenbreite\",\"\")","v":""},"5 kg Eimer","25 kg Sack"," für gräfix 3300 - Fliesen- und Natursteinflexfuge, schmal",{"$f":"IF(K221+K222>1,\" / \",\"\")","v":""},{"$f":"IF('Hintergrund-Mörtel'!F33>6,1,0)","v":0},null,"naturgrau","grau","anthrazit","beige","jura","silbergrau",0,1,2,3,5,6,10,"00",1,2,3,4,5,6]
[null,"Gesamtfläche",{"$f":"'Hintergrund-Mörtel'!C5*10","v":10},3,"gräfix 3301 Fliesen- und Natursteinflexfuge, breit,   2 bis 12 mm",1.5,null,"gräfix 33","kg",null,5,25,"Eimer","Sack",{"$f":"IF('Hintergrund-Mörtel'!F33<2,\"mind. 2 mm Fugenbreite\",IF('Hintergrund-Mörtel'!F33>12,\"max. 12 mm Fugenbreite\",\"\"))","v":"mind. 2 mm Fugenbreite"},"5 kg Eimer","25 kg Sack"," für gräfix 3301 - Fliesen- und Natursteinflexfuge, breit",{"$f":"IF(K221+K222>1,\" / \",\"\")","v":""},{"$f":"IF('Hintergrund-Mörtel'!F33<2,1,IF('Hintergrund-Mörtel'!F33>12,1,0))","v":1},null,"naturgrau","grau","anthrazit","beige","jura","dunkelgrau",0,1,2,3,5,4,11,"01",1,2,3,4,5,11]
[null,"Raumlänge",10,4,"gräfix 3303 Polygonal- und Pflasterfuge,   5 bis 30 mm",1.5,null,"gräfix 33","kg","mind. 2/3 Steinhöhe (komplette Fugentiefe bei Plattenbelägen)",25,"  ","Sack","  ",{"$f":"IF('Hintergrund-Mörtel'!F33<5,\"mind. 5 mm Fugenbreite\",IF('Hintergrund-Mörtel'!F33>30,\"max. 30 mm Fugenbreite\",\"\"))","v":"mind. 5 mm Fugenbreite"},"25 kg Sack","  "," für gräfix 3303 - Polygonal- und Pflasterfuge",{"$f":"IF(K221+K222>1,\" / \",\"\")","v":""},{"$f":"IF('Hintergrund-Mörtel'!F33<5,1,IF('Hintergrund-Mörtel'!F33>30,1,0))","v":1},1,"naturgrau","grau","anthrazit","beige",null,null,0,1,2,3,null,null,"03",null,1,2,3,4]
[null,"Fugentiefe",{"$f":"'Verbrauchsrechner-Mörtel'!F32/100","v":0},5,"gräfix 3401  2K Naturstein-Drainage- und Pflasterfuge",1.7,null,"gräfix 34","kg",{"$f":"IF('Verbrauchsrechner-Mörtel'!F32<30,\"mind. 30 mm Fugentiefe oder Plattenstärke\",\"\")","v":"mind. 30 mm Fugentiefe oder Plattenstärke"},25,"  ","Eimer","  ",{"$f":"IF('Verbrauchsrechner-Mörtel'!F33<5,\"mind. 5 mm Fugenbreite\",\"\")","v":"mind. 5 mm Fugenbreite"},"25 kg Eimer","  "," für gräfix 3401  - 2K Naturstein-Drainage- und Pflasterfuge",{"$f":"IF(K221+K222>1,\" / \",\"\")","v":""},{"$f":"IF('Hintergrund-Mörtel'!F33<3,1,0)","v":1},{"$f":"IF('Hintergrund-Mörtel'!F32<30,1,0)","v":1},"sand","steingrau","grau","anthrazit",null,null,0,1,2,3,null,null,21,null,7,8,10,9]
[null,"Fugenbreite",{"$f":"'Verbrauchsrechner-Mörtel'!F33/100","v":0},6,"gräfix 3402  1K Naturstein-Drainage- und Pflasterfuge",1.7,null,"gräfix 34","kg",{"$f":"IF('Verbrauchsrechner-Mörtel'!F32<30,\"mind. 30 mm Fugentiefe oder Plattenstärke\",\"\")","v":"mind. 30 mm Fugentiefe oder Plattenstärke"},25,"  ","Eimer","  ",{"$f":"IF('Verbrauchsrechner-Mörtel'!F33<3,\"mind. 3 mm Fugenbreite\",\"\")","v":"mind. 3 mm Fugenbreite"},"25 kg Eimer","  "," für gräfix 3402  - 1K Naturstein-Drainage- und Pflasterfuge",{"$f":"IF(K221+K222>1,\" / \",\"\")","v":""},{"$f":"IF('Hintergrund-Mörtel'!F33<8,1,0)","v":1},{"$f":"IF('Hintergrund-Mörtel'!F32<30,1,0)","v":1},"sand","steingrau","grau","anthrazit",null,null,0,1,2,3,null,null,22,null,7,8,10,9]
[]
[null,null,1,"Auswahl / Steuerelement (Gebindegröße der Fugenmasse)"]
[null,null,{"$f":"INDEX(E244:N245,C240,8)","v":0},"Auswahl / Gebindegröße"]
[null,{"$f":"INDEX(E244:N245,C240,2)","v":"keine"},{"$f":"INDEX(E244:N245,C240,9)","v":0},"Auswahl / Gebindeart"]
[null,null,null,"INDEX","Produkt","Code",null,null,null,null,"Gebinde"]
[null,null,null,1,{"$f":"C218","v":"keine"},{"$f":"B218","v":"keine"},null,null,null,null,null,{"$f":"C214","v":0},{"$f":"C216","v":0}]
[null,null,null,2,{"$f":"C219","v":"    "},{"$f":"B219","v":0},null,null,null,null,null,{"$f":"C215","v":0},{"$f":"C217","v":0}]
[]
[null,null,1,"Auswahl / INDEX"]
[null,null,{"$f":"INDEX(E250:M255,C247,1)","v":"keine"},"Auswahl / Fugenfarbe"]
[null,null,{"$f":"INDEX(E250:M255,C247,2)","v":"keine"},"Auswahl / Farbcode",null,"Farb-Code","Farb-Code / Bild"]
[null,null,{"$f":"INDEX(E250:M255,C247,3)","v":"keine"},1,{"$f":"IF(C226=0,\"\",C226)","v":"keine"},{"$f":"B226","v":"keine"},{"$f":"A226","v":"keine"}]
[null,null,null,2,"",0,{"$f":"A227","v":0}]
[null,null,null,3,"",0,0]
[null,null,null,4,"",0,0]
[null,null,null,5,"",0,0]
[null,null,null,6,"",0,0]
[]
[]
[]
[]
[]
[]
[]
[]
[]
[]
[]
[]
[]
[]
[]
[]
[]
[]
[]
[null,null,2]
[]
[]
[]
[]
[]
[]
[]
[]
[]
[]
[]
[]
[]
[]
[]
[]
[]
[]
[]
[]
[]
[]
[]
[]
[]
[]
[]
[]
[]
[null,null,1]
[]
[]
[]
[]
[]
[]
[null,null,2]